{"text_format":"1","workbook":"xlsx","n_sheets":11,"sheets":["メニュー整理用","入力表（調査票形式）","新入力表","入力表（喫食）","使い方（メニュー整理用）","カイ2乗表","使い方（１）","入力例","食中毒調査票","喫食調査票２","Sheet1"],"not_rendered":{"charts":0,"images":2,"macros":1,"external_links":0,"defined_names":7,"comments":6,"pivot_tables":0},"unopened":[],"bounds":{"document_bytes":16777216,"sheet_cells":100000,"rows_first":2000,"rows_last":500,"rows_between":2000,"halvings":0,"cell_chars":16384,"cell_head_chars":4096},"cells_cut":0,"cells_raw":0,"read":"whole","date_system":"1900"}

{"sheet":"メニュー整理用","index":0,"n_rows":258,"n_cols":26,"rows_kept":258,"cut":false,"hidden":false,"merged":[]}
[null,null,"喫食入力Ver.3.0"]
[]
[]
[]
[null,{"$f":"CONCATENATE(\"表示行数 = \",SUBTOTAL(103,$A9:$A2000))","v":"表示行数 = 57"}]
[null,null,"献立番号",1,2,3,4,5,6,7,8,9,10,11,12,13,14,15,16,17,18,19,20,21,22]
[]
["No.","種別","食品","ちらし寿司セット","鉄火セット","にぎり寿司セット","弁当","未入力","未入力","未入力","未入力","未入力","未入力","未入力","未入力","未入力","未入力","未入力","未入力","未入力","未入力","未入力","未入力","未入力","未入力","食品ID"]
[1,"天ぷら","いも",null,null,null,1,null,null,null,null,null,null,null,null,null,null,null,null,null,null,null,null,null,null,"001"]
[2,"天ぷら","さかな",null,null,null,2,null,null,null,null,null,null,null,null,null,null,null,null,null,null,null,null,null,null,"002"]
[3,"天ぷら","イカ",null,null,null,3,null,null,null,null,null,null,null,null,null,null,null,null,null,null,null,null,null,null,"003"]
[4,"天ぷら","とりにく",null,null,null,4,null,null,null,null,null,null,null,null,null,null,null,null,null,null,null,null,null,null,"004"]
[5,"天ぷら","タコ",null,null,null,5,null,null,null,null,null,null,null,null,null,null,null,null,null,null,null,null,null,null,"005"]
[6,"天ぷら","さといも",null,null,null,6,null,null,null,null,null,null,null,null,null,null,null,null,null,null,null,null,null,null,"006"]
[7,"天ぷら","やまいも",null,null,null,7,null,null,null,null,null,null,null,null,null,null,null,null,null,null,null,null,null,null,"007"]
[8,"天ぷら","塩",null,null,null,9,null,null,null,null,null,null,null,null,null,null,null,null,null,null,null,null,null,null,"008"]
[9,"天ぷら","ナス",null,null,null,8,null,null,null,null,null,null,null,null,null,null,null,null,null,null,null,null,null,null,"009"]
[10,"天ぷら","かぼちゃ",null,null,null,10,null,null,null,null,null,null,null,null,null,null,null,null,null,null,null,null,null,null,"010"]
[11,"造り","サーモン",null,null,null,11,null,null,null,null,null,null,null,null,null,null,null,null,null,null,null,null,null,null,"011"]
[12,"既製品","卵焼き",null,null,null,12,null,null,null,null,null,null,null,null,null,null,null,null,null,null,null,null,null,null,"012"]
[13,"酢の物","タコ",null,null,null,13,null,null,null,null,null,null,null,null,null,null,null,null,null,null,null,null,null,null,"013"]
[14,"造り","イカ",null,null,null,14,null,null,null,null,null,null,null,null,null,null,null,null,null,null,null,null,null,null,"014"]
[15,"酢の物","わかめ",null,null,null,16,null,null,null,null,null,null,null,null,null,null,null,null,null,null,null,null,null,null,"015"]
[16,"酢の物","きゅうり",null,null,null,15,null,null,null,null,null,null,null,null,null,null,null,null,null,null,null,null,null,null,"016"]
[17,"たきもの","大根",null,null,null,17,null,null,null,null,null,null,null,null,null,null,null,null,null,null,null,null,null,null,"017"]
[18,"たきもの","人参",null,null,null,18,null,null,null,null,null,null,null,null,null,null,null,null,null,null,null,null,null,null,"018"]
[19,"たきもの","スナップエンドウ",null,null,null,19,null,null,null,null,null,null,null,null,null,null,null,null,null,null,null,null,null,null,"019"]
[20,"たきもの","タケノコ",null,null,null,20,null,null,null,null,null,null,null,null,null,null,null,null,null,null,null,null,null,null,"020"]
[21,"たきもの","シイタケ",null,null,null,21,null,null,null,null,null,null,null,null,null,null,null,null,null,null,null,null,null,null,"021"]
[22,"ちらし寿司","おぼろ",null,null,null,22,null,null,null,null,null,null,null,null,null,null,null,null,null,null,null,null,null,null,"022"]
[23,"ちらし寿司","マメ",null,null,null,23,null,null,null,null,null,null,null,null,null,null,null,null,null,null,null,null,null,null,"023"]
[24,"ちらし寿司","うなぎ",null,null,null,24,null,null,null,null,null,null,null,null,null,null,null,null,null,null,null,null,null,null,"024"]
[25,"ちらし寿司","うなぎ",null,13.2,15,null,null,null,null,null,null,null,null,null,null,null,null,null,null,null,null,null,null,null,"025"]
[26,"ちらし寿司","ノリ",null,null,null,25,null,null,null,null,null,null,null,null,null,null,null,null,null,null,null,null,null,null,"026"]
[27,"ちらし寿司","ノリ",null,null,16,null,null,null,null,null,null,null,null,null,null,null,null,null,null,null,null,null,null,null,"027"]
[28,"ちらし寿司","錦糸卵",null,null,null,26,null,null,null,null,null,null,null,null,null,null,null,null,null,null,null,null,null,null,"028"]
[29,"ちらし寿司","錦糸卵",12,13.3,14,null,null,null,null,null,null,null,null,null,null,null,null,null,null,null,null,null,null,null,"029"]
[30,"ちらし寿司","しょうが",null,null,null,27,null,null,null,null,null,null,null,null,null,null,null,null,null,null,null,null,null,null,"030"]
[31,"ちらし寿司","しょうが",null,null,14.3,null,null,null,null,null,null,null,null,null,null,null,null,null,null,null,null,null,null,null,"031"]
[32,"弁当","焼魚",null,null,null,28,null,null,null,null,null,null,null,null,null,null,null,null,null,null,null,null,null,null,"032"]
[33,"弁当","焼魚",null,null,14.2,null,null,null,null,null,null,null,null,null,null,null,null,null,null,null,null,null,null,null,"033"]
[34,"デザート","オレンジ",13,13.1,14.1,29,null,null,null,null,null,null,null,null,null,null,null,null,null,null,null,null,null,null,"034"]
[35,"デザート","イチゴ",9,12,11,null,null,null,null,null,null,null,null,null,null,null,null,null,null,null,null,null,null,null,"035"]
[36,"デザート","メロン",7,10,9,null,null,null,null,null,null,null,null,null,null,null,null,null,null,null,null,null,null,null,"036"]
[37,"31セット","コーヒー",10,13,12,null,null,null,null,null,null,null,null,null,null,null,null,null,null,null,null,null,null,null,"037"]
[38,"31セット","茶碗蒸し",8,11,10,null,null,null,null,null,null,null,null,null,null,null,null,null,null,null,null,null,null,null,"038"]
[39,"31セット","フルーツ",11,14,13,null,null,null,null,null,null,null,null,null,null,null,null,null,null,null,null,null,null,null,"039"]
[40,"31ちらし寿司","イカ",2,2,2,null,null,null,null,null,null,null,null,null,null,null,null,null,null,null,null,null,null,null,"040"]
[41,"31ちらし寿司","えび",6,6,6,null,null,null,null,null,null,null,null,null,null,null,null,null,null,null,null,null,null,null,"041"]
[42,"31ちらし寿司","カンパチ",5,5,5,null,null,null,null,null,null,null,null,null,null,null,null,null,null,null,null,null,null,null,"042"]
[43,"31ちらし寿司","サーモン",4,4,4,null,null,null,null,null,null,null,null,null,null,null,null,null,null,null,null,null,null,null,"043"]
[44,"31ちらし寿司","タコ",3,3,3,null,null,null,null,null,null,null,null,null,null,null,null,null,null,null,null,null,null,null,"044"]
[45,"31ちらし寿司","まぐろ",1,1,1,null,null,null,null,null,null,null,null,null,null,null,null,null,null,null,null,null,null,null,"045"]
[46,"31鉄火セット","うなぎ",6.1,7,7,null,null,null,null,null,null,null,null,null,null,null,null,null,null,null,null,null,null,null,"046"]
[47,"31鉄火セット","鉄火１本",null,8,null,null,null,null,null,null,null,null,null,null,null,null,null,null,null,null,null,null,null,null,"047"]
[48,"31握り","タイ",6.4,9,8,null,null,null,null,null,null,null,null,null,null,null,null,null,null,null,null,null,null,null,"048"]
[49,"ちらし寿司","いくら",6.3,null,null,null,null,null,null,null,null,null,null,null,null,null,null,null,null,null,null,null,null,null,"049"]
[50,"ちらし寿司","玉子",6.2,null,null,null,null,null,null,null,null,null,null,null,null,null,null,null,null,null,null,null,null,null,"050"]
[51,"にぎりセット","お茶",null,null,17,null,null,null,null,null,null,null,null,null,null,null,null,null,null,null,null,null,null,null,"051"]
[52,"にぎりセット","がり",null,null,18,null,null,null,null,null,null,null,null,null,null,null,null,null,null,null,null,null,null,null,"052"]
[53,"ちらし寿司","しょうが",null,null,9.5,null,null,null,null,null,null,null,null,null,null,null,null,null,null,null,null,null,null,null,"053"]
[54,"弁当","焼魚",null,null,19,null,null,null,null,null,null,null,null,null,null,null,null,null,null,null,null,null,null,null,"054"]
[55,null,"ｋ",null,null,null,null,null,null,null,null,null,null,null,null,null,null,null,null,null,null,null,null,null,null,"055"]
[56,"k","l",null,null,null,null,null,null,null,null,null,null,null,null,null,null,null,null,null,null,null,null,null,null,"056"]
[57,"ppp",null,null,null,null,null,null,null,null,null,null,null,null,null,null,null,null,null,null,null,null,null,null,null,"057"]
[null,null,null,null,null,null,null,null,null,null,null,null,null,null,null,null,null,null,null,null,null,null,null,null,null,"058"]
[null,null,null,null,null,null,null,null,null,null,null,null,null,null,null,null,null,null,null,null,null,null,null,null,null,"059"]
[null,null,null,null,null,null,null,null,null,null,null,null,null,null,null,null,null,null,null,null,null,null,null,null,null,"060"]
[null,null,null,null,null,null,null,null,null,null,null,null,null,null,null,null,null,null,null,null,null,null,null,null,null,"061"]
[null,null,null,null,null,null,null,null,null,null,null,null,null,null,null,null,null,null,null,null,null,null,null,null,null,"062"]
[null,null,null,null,null,null,null,null,null,null,null,null,null,null,null,null,null,null,null,null,null,null,null,null,null,"063"]
[null,null,null,null,null,null,null,null,null,null,null,null,null,null,null,null,null,null,null,null,null,null,null,null,null,"064"]
[null,null,null,null,null,null,null,null,null,null,null,null,null,null,null,null,null,null,null,null,null,null,null,null,null,"065"]
[null,null,null,null,null,null,null,null,null,null,null,null,null,null,null,null,null,null,null,null,null,null,null,null,null,"066"]
[null,null,null,null,null,null,null,null,null,null,null,null,null,null,null,null,null,null,null,null,null,null,null,null,null,"067"]
[null,null,null,null,null,null,null,null,null,null,null,null,null,null,null,null,null,null,null,null,null,null,null,null,null,"068"]
[null,null,null,null,null,null,null,null,null,null,null,null,null,null,null,null,null,null,null,null,null,null,null,null,null,"069"]
[null,null,null,null,null,null,null,null,null,null,null,null,null,null,null,null,null,null,null,null,null,null,null,null,null,"070"]
[null,null,null,null,null,null,null,null,null,null,null,null,null,null,null,null,null,null,null,null,null,null,null,null,null,"071"]
[null,null,null,null,null,null,null,null,null,null,null,null,null,null,null,null,null,null,null,null,null,null,null,null,null,"072"]
[null,null,null,null,null,null,null,null,null,null,null,null,null,null,null,null,null,null,null,null,null,null,null,null,null,"073"]
[null,null,null,null,null,null,null,null,null,null,null,null,null,null,null,null,null,null,null,null,null,null,null,null,null,"074"]
[null,null,null,null,null,null,null,null,null,null,null,null,null,null,null,null,null,null,null,null,null,null,null,null,null,"075"]
[null,null,null,null,null,null,null,null,null,null,null,null,null,null,null,null,null,null,null,null,null,null,null,null,null,"076"]
[null,null,null,null,null,null,null,null,null,null,null,null,null,null,null,null,null,null,null,null,null,null,null,null,null,"077"]
[null,null,null,null,null,null,null,null,null,null,null,null,null,null,null,null,null,null,null,null,null,null,null,null,null,"078"]
[null,null,null,null,null,null,null,null,null,null,null,null,null,null,null,null,null,null,null,null,null,null,null,null,null,"079"]
[null,null,null,null,null,null,null,null,null,null,null,null,null,null,null,null,null,null,null,null,null,null,null,null,null,"080"]
[null,null,null,null,null,null,null,null,null,null,null,null,null,null,null,null,null,null,null,null,null,null,null,null,null,"081"]
[null,null,null,null,null,null,null,null,null,null,null,null,null,null,null,null,null,null,null,null,null,null,null,null,null,"082"]
[null,null,null,null,null,null,null,null,null,null,null,null,null,null,null,null,null,null,null,null,null,null,null,null,null,"083"]
[null,null,null,null,null,null,null,null,null,null,null,null,null,null,null,null,null,null,null,null,null,null,null,null,null,"084"]
[null,null,null,null,null,null,null,null,null,null,null,null,null,null,null,null,null,null,null,null,null,null,null,null,null,"085"]
[null,null,null,null,null,null,null,null,null,null,null,null,null,null,null,null,null,null,null,null,null,null,null,null,null,"086"]
[null,null,null,null,null,null,null,null,null,null,null,null,null,null,null,null,null,null,null,null,null,null,null,null,null,"087"]
[null,null,null,null,null,null,null,null,null,null,null,null,null,null,null,null,null,null,null,null,null,null,null,null,null,"088"]
[null,null,null,null,null,null,null,null,null,null,null,null,null,null,null,null,null,null,null,null,null,null,null,null,null,"089"]
[null,null,null,null,null,null,null,null,null,null,null,null,null,null,null,null,null,null,null,null,null,null,null,null,null,"090"]
[null,null,null,null,null,null,null,null,null,null,null,null,null,null,null,null,null,null,null,null,null,null,null,null,null,"091"]
[null,null,null,null,null,null,null,null,null,null,null,null,null,null,null,null,null,null,null,null,null,null,null,null,null,"092"]
[null,null,null,null,null,null,null,null,null,null,null,null,null,null,null,null,null,null,null,null,null,null,null,null,null,"093"]
[null,null,null,null,null,null,null,null,null,null,null,null,null,null,null,null,null,null,null,null,null,null,null,null,null,"094"]
[null,null,null,null,null,null,null,null,null,null,null,null,null,null,null,null,null,null,null,null,null,null,null,null,null,"095"]
[null,null,null,null,null,null,null,null,null,null,null,null,null,null,null,null,null,null,null,null,null,null,null,null,null,"096"]
[null,null,null,null,null,null,null,null,null,null,null,null,null,null,null,null,null,null,null,null,null,null,null,null,null,"097"]
[null,null,null,null,null,null,null,null,null,null,null,null,null,null,null,null,null,null,null,null,null,null,null,null,null,"098"]
[null,null,null,null,null,null,null,null,null,null,null,null,null,null,null,null,null,null,null,null,null,null,null,null,null,"099"]
[null,null,null,null,null,null,null,null,null,null,null,null,null,null,null,null,null,null,null,null,null,null,null,null,null,"100"]
[null,null,null,null,null,null,null,null,null,null,null,null,null,null,null,null,null,null,null,null,null,null,null,null,null,"101"]
[null,null,null,null,null,null,null,null,null,null,null,null,null,null,null,null,null,null,null,null,null,null,null,null,null,"102"]
[null,null,null,null,null,null,null,null,null,null,null,null,null,null,null,null,null,null,null,null,null,null,null,null,null,"103"]
[null,null,null,null,null,null,null,null,null,null,null,null,null,null,null,null,null,null,null,null,null,null,null,null,null,"104"]
[null,null,null,null,null,null,null,null,null,null,null,null,null,null,null,null,null,null,null,null,null,null,null,null,null,"105"]
[null,null,null,null,null,null,null,null,null,null,null,null,null,null,null,null,null,null,null,null,null,null,null,null,null,"106"]
[null,null,null,null,null,null,null,null,null,null,null,null,null,null,null,null,null,null,null,null,null,null,null,null,null,"107"]
[null,null,null,null,null,null,null,null,null,null,null,null,null,null,null,null,null,null,null,null,null,null,null,null,null,"108"]
[null,null,null,null,null,null,null,null,null,null,null,null,null,null,null,null,null,null,null,null,null,null,null,null,null,"109"]
[null,null,null,null,null,null,null,null,null,null,null,null,null,null,null,null,null,null,null,null,null,null,null,null,null,"110"]
[null,null,null,null,null,null,null,null,null,null,null,null,null,null,null,null,null,null,null,null,null,null,null,null,null,"111"]
[null,null,null,null,null,null,null,null,null,null,null,null,null,null,null,null,null,null,null,null,null,null,null,null,null,"112"]
[null,null,null,null,null,null,null,null,null,null,null,null,null,null,null,null,null,null,null,null,null,null,null,null,null,"113"]
[null,null,null,null,null,null,null,null,null,null,null,null,null,null,null,null,null,null,null,null,null,null,null,null,null,"114"]
[null,null,null,null,null,null,null,null,null,null,null,null,null,null,null,null,null,null,null,null,null,null,null,null,null,"115"]
[null,null,null,null,null,null,null,null,null,null,null,null,null,null,null,null,null,null,null,null,null,null,null,null,null,"116"]
[null,null,null,null,null,null,null,null,null,null,null,null,null,null,null,null,null,null,null,null,null,null,null,null,null,"117"]
[null,null,null,null,null,null,null,null,null,null,null,null,null,null,null,null,null,null,null,null,null,null,null,null,null,"118"]
[null,null,null,null,null,null,null,null,null,null,null,null,null,null,null,null,null,null,null,null,null,null,null,null,null,"119"]
[null,null,null,null,null,null,null,null,null,null,null,null,null,null,null,null,null,null,null,null,null,null,null,null,null,"120"]
[null,null,null,null,null,null,null,null,null,null,null,null,null,null,null,null,null,null,null,null,null,null,null,null,null,"121"]
[null,null,null,null,null,null,null,null,null,null,null,null,null,null,null,null,null,null,null,null,null,null,null,null,null,"122"]
[null,null,null,null,null,null,null,null,null,null,null,null,null,null,null,null,null,null,null,null,null,null,null,null,null,"123"]
[null,null,null,null,null,null,null,null,null,null,null,null,null,null,null,null,null,null,null,null,null,null,null,null,null,"124"]
[null,null,null,null,null,null,null,null,null,null,null,null,null,null,null,null,null,null,null,null,null,null,null,null,null,"125"]
[null,null,null,null,null,null,null,null,null,null,null,null,null,null,null,null,null,null,null,null,null,null,null,null,null,"126"]
[null,null,null,null,null,null,null,null,null,null,null,null,null,null,null,null,null,null,null,null,null,null,null,null,null,"127"]
[null,null,null,null,null,null,null,null,null,null,null,null,null,null,null,null,null,null,null,null,null,null,null,null,null,"128"]
[null,null,null,null,null,null,null,null,null,null,null,null,null,null,null,null,null,null,null,null,null,null,null,null,null,"129"]
[null,null,null,null,null,null,null,null,null,null,null,null,null,null,null,null,null,null,null,null,null,null,null,null,null,"130"]
[null,null,null,null,null,null,null,null,null,null,null,null,null,null,null,null,null,null,null,null,null,null,null,null,null,"131"]
[null,null,null,null,null,null,null,null,null,null,null,null,null,null,null,null,null,null,null,null,null,null,null,null,null,"132"]
[null,null,null,null,null,null,null,null,null,null,null,null,null,null,null,null,null,null,null,null,null,null,null,null,null,"133"]
[null,null,null,null,null,null,null,null,null,null,null,null,null,null,null,null,null,null,null,null,null,null,null,null,null,"134"]
[null,null,null,null,null,null,null,null,null,null,null,null,null,null,null,null,null,null,null,null,null,null,null,null,null,"135"]
[null,null,null,null,null,null,null,null,null,null,null,null,null,null,null,null,null,null,null,null,null,null,null,null,null,"136"]
[null,null,null,null,null,null,null,null,null,null,null,null,null,null,null,null,null,null,null,null,null,null,null,null,null,"137"]
[null,null,null,null,null,null,null,null,null,null,null,null,null,null,null,null,null,null,null,null,null,null,null,null,null,"138"]
[null,null,null,null,null,null,null,null,null,null,null,null,null,null,null,null,null,null,null,null,null,null,null,null,null,"139"]
[null,null,null,null,null,null,null,null,null,null,null,null,null,null,null,null,null,null,null,null,null,null,null,null,null,"140"]
[null,null,null,null,null,null,null,null,null,null,null,null,null,null,null,null,null,null,null,null,null,null,null,null,null,"141"]
[null,null,null,null,null,null,null,null,null,null,null,null,null,null,null,null,null,null,null,null,null,null,null,null,null,"142"]
[null,null,null,null,null,null,null,null,null,null,null,null,null,null,null,null,null,null,null,null,null,null,null,null,null,"143"]
[null,null,null,null,null,null,null,null,null,null,null,null,null,null,null,null,null,null,null,null,null,null,null,null,null,"144"]
[null,null,null,null,null,null,null,null,null,null,null,null,null,null,null,null,null,null,null,null,null,null,null,null,null,"145"]
[null,null,null,null,null,null,null,null,null,null,null,null,null,null,null,null,null,null,null,null,null,null,null,null,null,"146"]
[null,null,null,null,null,null,null,null,null,null,null,null,null,null,null,null,null,null,null,null,null,null,null,null,null,"147"]
[null,null,null,null,null,null,null,null,null,null,null,null,null,null,null,null,null,null,null,null,null,null,null,null,null,"148"]
[null,null,null,null,null,null,null,null,null,null,null,null,null,null,null,null,null,null,null,null,null,null,null,null,null,"149"]
[null,null,null,null,null,null,null,null,null,null,null,null,null,null,null,null,null,null,null,null,null,null,null,null,null,"150"]
[null,null,null,null,null,null,null,null,null,null,null,null,null,null,null,null,null,null,null,null,null,null,null,null,null,"151"]
[null,null,null,null,null,null,null,null,null,null,null,null,null,null,null,null,null,null,null,null,null,null,null,null,null,"152"]
[null,null,null,null,null,null,null,null,null,null,null,null,null,null,null,null,null,null,null,null,null,null,null,null,null,"153"]
[null,null,null,null,null,null,null,null,null,null,null,null,null,null,null,null,null,null,null,null,null,null,null,null,null,"154"]
[null,null,null,null,null,null,null,null,null,null,null,null,null,null,null,null,null,null,null,null,null,null,null,null,null,"155"]
[null,null,null,null,null,null,null,null,null,null,null,null,null,null,null,null,null,null,null,null,null,null,null,null,null,"156"]
[null,null,null,null,null,null,null,null,null,null,null,null,null,null,null,null,null,null,null,null,null,null,null,null,null,"157"]
[null,null,null,null,null,null,null,null,null,null,null,null,null,null,null,null,null,null,null,null,null,null,null,null,null,"158"]
[null,null,null,null,null,null,null,null,null,null,null,null,null,null,null,null,null,null,null,null,null,null,null,null,null,"159"]
[null,null,null,null,null,null,null,null,null,null,null,null,null,null,null,null,null,null,null,null,null,null,null,null,null,"160"]
[null,null,null,null,null,null,null,null,null,null,null,null,null,null,null,null,null,null,null,null,null,null,null,null,null,"161"]
[null,null,null,null,null,null,null,null,null,null,null,null,null,null,null,null,null,null,null,null,null,null,null,null,null,"162"]
[null,null,null,null,null,null,null,null,null,null,null,null,null,null,null,null,null,null,null,null,null,null,null,null,null,"163"]
[null,null,null,null,null,null,null,null,null,null,null,null,null,null,null,null,null,null,null,null,null,null,null,null,null,"164"]
[null,null,null,null,null,null,null,null,null,null,null,null,null,null,null,null,null,null,null,null,null,null,null,null,null,"165"]
[null,null,null,null,null,null,null,null,null,null,null,null,null,null,null,null,null,null,null,null,null,null,null,null,null,"166"]
[null,null,null,null,null,null,null,null,null,null,null,null,null,null,null,null,null,null,null,null,null,null,null,null,null,"167"]
[null,null,null,null,null,null,null,null,null,null,null,null,null,null,null,null,null,null,null,null,null,null,null,null,null,"168"]
[null,null,null,null,null,null,null,null,null,null,null,null,null,null,null,null,null,null,null,null,null,null,null,null,null,"169"]
[null,null,null,null,null,null,null,null,null,null,null,null,null,null,null,null,null,null,null,null,null,null,null,null,null,"170"]
[null,null,null,null,null,null,null,null,null,null,null,null,null,null,null,null,null,null,null,null,null,null,null,null,null,"171"]
[null,null,null,null,null,null,null,null,null,null,null,null,null,null,null,null,null,null,null,null,null,null,null,null,null,"172"]
[null,null,null,null,null,null,null,null,null,null,null,null,null,null,null,null,null,null,null,null,null,null,null,null,null,"173"]
[null,null,null,null,null,null,null,null,null,null,null,null,null,null,null,null,null,null,null,null,null,null,null,null,null,"174"]
[null,null,null,null,null,null,null,null,null,null,null,null,null,null,null,null,null,null,null,null,null,null,null,null,null,"175"]
[null,null,null,null,null,null,null,null,null,null,null,null,null,null,null,null,null,null,null,null,null,null,null,null,null,"176"]
[null,null,null,null,null,null,null,null,null,null,null,null,null,null,null,null,null,null,null,null,null,null,null,null,null,"177"]
[null,null,null,null,null,null,null,null,null,null,null,null,null,null,null,null,null,null,null,null,null,null,null,null,null,"178"]
[null,null,null,null,null,null,null,null,null,null,null,null,null,null,null,null,null,null,null,null,null,null,null,null,null,"179"]
[null,null,null,null,null,null,null,null,null,null,null,null,null,null,null,null,null,null,null,null,null,null,null,null,null,"180"]
[null,null,null,null,null,null,null,null,null,null,null,null,null,null,null,null,null,null,null,null,null,null,null,null,null,"181"]
[null,null,null,null,null,null,null,null,null,null,null,null,null,null,null,null,null,null,null,null,null,null,null,null,null,"182"]
[null,null,null,null,null,null,null,null,null,null,null,null,null,null,null,null,null,null,null,null,null,null,null,null,null,"183"]
[null,null,null,null,null,null,null,null,null,null,null,null,null,null,null,null,null,null,null,null,null,null,null,null,null,"184"]
[null,null,null,null,null,null,null,null,null,null,null,null,null,null,null,null,null,null,null,null,null,null,null,null,null,"185"]
[null,null,null,null,null,null,null,null,null,null,null,null,null,null,null,null,null,null,null,null,null,null,null,null,null,"186"]
[null,null,null,null,null,null,null,null,null,null,null,null,null,null,null,null,null,null,null,null,null,null,null,null,null,"187"]
[null,null,null,null,null,null,null,null,null,null,null,null,null,null,null,null,null,null,null,null,null,null,null,null,null,"188"]
[null,null,null,null,null,null,null,null,null,null,null,null,null,null,null,null,null,null,null,null,null,null,null,null,null,"189"]
[null,null,null,null,null,null,null,null,null,null,null,null,null,null,null,null,null,null,null,null,null,null,null,null,null,"190"]
[null,null,null,null,null,null,null,null,null,null,null,null,null,null,null,null,null,null,null,null,null,null,null,null,null,"191"]
[null,null,null,null,null,null,null,null,null,null,null,null,null,null,null,null,null,null,null,null,null,null,null,null,null,"192"]
[null,null,null,null,null,null,null,null,null,null,null,null,null,null,null,null,null,null,null,null,null,null,null,null,null,"193"]
[null,null,null,null,null,null,null,null,null,null,null,null,null,null,null,null,null,null,null,null,null,null,null,null,null,"194"]
[null,null,null,null,null,null,null,null,null,null,null,null,null,null,null,null,null,null,null,null,null,null,null,null,null,"195"]
[null,null,null,null,null,null,null,null,null,null,null,null,null,null,null,null,null,null,null,null,null,null,null,null,null,"196"]
[null,null,null,null,null,null,null,null,null,null,null,null,null,null,null,null,null,null,null,null,null,null,null,null,null,"197"]
[null,null,null,null,null,null,null,null,null,null,null,null,null,null,null,null,null,null,null,null,null,null,null,null,null,"198"]
[null,null,null,null,null,null,null,null,null,null,null,null,null,null,null,null,null,null,null,null,null,null,null,null,null,"199"]
[null,null,null,null,null,null,null,null,null,null,null,null,null,null,null,null,null,null,null,null,null,null,null,null,null,"200"]
[null,null,null,null,null,null,null,null,null,null,null,null,null,null,null,null,null,null,null,null,null,null,null,null,null,"201"]
[null,null,null,null,null,null,null,null,null,null,null,null,null,null,null,null,null,null,null,null,null,null,null,null,null,"202"]
[null,null,null,null,null,null,null,null,null,null,null,null,null,null,null,null,null,null,null,null,null,null,null,null,null,"203"]
[null,null,null,null,null,null,null,null,null,null,null,null,null,null,null,null,null,null,null,null,null,null,null,null,null,"204"]
[null,null,null,null,null,null,null,null,null,null,null,null,null,null,null,null,null,null,null,null,null,null,null,null,null,"205"]
[null,null,null,null,null,null,null,null,null,null,null,null,null,null,null,null,null,null,null,null,null,null,null,null,null,"206"]
[null,null,null,null,null,null,null,null,null,null,null,null,null,null,null,null,null,null,null,null,null,null,null,null,null,"207"]
[null,null,null,null,null,null,null,null,null,null,null,null,null,null,null,null,null,null,null,null,null,null,null,null,null,"208"]
[null,null,null,null,null,null,null,null,null,null,null,null,null,null,null,null,null,null,null,null,null,null,null,null,null,"209"]
[null,null,null,null,null,null,null,null,null,null,null,null,null,null,null,null,null,null,null,null,null,null,null,null,null,"210"]
[null,null,null,null,null,null,null,null,null,null,null,null,null,null,null,null,null,null,null,null,null,null,null,null,null,"211"]
[null,null,null,null,null,null,null,null,null,null,null,null,null,null,null,null,null,null,null,null,null,null,null,null,null,"212"]
[null,null,null,null,null,null,null,null,null,null,null,null,null,null,null,null,null,null,null,null,null,null,null,null,null,"213"]
[null,null,null,null,null,null,null,null,null,null,null,null,null,null,null,null,null,null,null,null,null,null,null,null,null,"214"]
[null,null,null,null,null,null,null,null,null,null,null,null,null,null,null,null,null,null,null,null,null,null,null,null,null,"215"]
[null,null,null,null,null,null,null,null,null,null,null,null,null,null,null,null,null,null,null,null,null,null,null,null,null,"216"]
[null,null,null,null,null,null,null,null,null,null,null,null,null,null,null,null,null,null,null,null,null,null,null,null,null,"217"]
[null,null,null,null,null,null,null,null,null,null,null,null,null,null,null,null,null,null,null,null,null,null,null,null,null,"218"]
[null,null,null,null,null,null,null,null,null,null,null,null,null,null,null,null,null,null,null,null,null,null,null,null,null,"219"]
[null,null,null,null,null,null,null,null,null,null,null,null,null,null,null,null,null,null,null,null,null,null,null,null,null,"220"]
[null,null,null,null,null,null,null,null,null,null,null,null,null,null,null,null,null,null,null,null,null,null,null,null,null,"221"]
[null,null,null,null,null,null,null,null,null,null,null,null,null,null,null,null,null,null,null,null,null,null,null,null,null,"222"]
[null,null,null,null,null,null,null,null,null,null,null,null,null,null,null,null,null,null,null,null,null,null,null,null,null,"223"]
[null,null,null,null,null,null,null,null,null,null,null,null,null,null,null,null,null,null,null,null,null,null,null,null,null,"224"]
[null,null,null,null,null,null,null,null,null,null,null,null,null,null,null,null,null,null,null,null,null,null,null,null,null,"225"]
[null,null,null,null,null,null,null,null,null,null,null,null,null,null,null,null,null,null,null,null,null,null,null,null,null,"226"]
[null,null,null,null,null,null,null,null,null,null,null,null,null,null,null,null,null,null,null,null,null,null,null,null,null,"227"]
[null,null,null,null,null,null,null,null,null,null,null,null,null,null,null,null,null,null,null,null,null,null,null,null,null,"228"]
[null,null,null,null,null,null,null,null,null,null,null,null,null,null,null,null,null,null,null,null,null,null,null,null,null,"229"]
[null,null,null,null,null,null,null,null,null,null,null,null,null,null,null,null,null,null,null,null,null,null,null,null,null,"230"]
[null,null,null,null,null,null,null,null,null,null,null,null,null,null,null,null,null,null,null,null,null,null,null,null,null,"231"]
[null,null,null,null,null,null,null,null,null,null,null,null,null,null,null,null,null,null,null,null,null,null,null,null,null,"232"]
[null,null,null,null,null,null,null,null,null,null,null,null,null,null,null,null,null,null,null,null,null,null,null,null,null,"233"]
[null,null,null,null,null,null,null,null,null,null,null,null,null,null,null,null,null,null,null,null,null,null,null,null,null,"234"]
[null,null,null,null,null,null,null,null,null,null,null,null,null,null,null,null,null,null,null,null,null,null,null,null,null,"235"]
[null,null,null,null,null,null,null,null,null,null,null,null,null,null,null,null,null,null,null,null,null,null,null,null,null,"236"]
[null,null,null,null,null,null,null,null,null,null,null,null,null,null,null,null,null,null,null,null,null,null,null,null,null,"237"]
[null,null,null,null,null,null,null,null,null,null,null,null,null,null,null,null,null,null,null,null,null,null,null,null,null,"238"]
[null,null,null,null,null,null,null,null,null,null,null,null,null,null,null,null,null,null,null,null,null,null,null,null,null,"239"]
[null,null,null,null,null,null,null,null,null,null,null,null,null,null,null,null,null,null,null,null,null,null,null,null,null,"240"]
[null,null,null,null,null,null,null,null,null,null,null,null,null,null,null,null,null,null,null,null,null,null,null,null,null,"241"]
[null,null,null,null,null,null,null,null,null,null,null,null,null,null,null,null,null,null,null,null,null,null,null,null,null,"242"]
[null,null,null,null,null,null,null,null,null,null,null,null,null,null,null,null,null,null,null,null,null,null,null,null,null,"243"]
[null,null,null,null,null,null,null,null,null,null,null,null,null,null,null,null,null,null,null,null,null,null,null,null,null,"244"]
[null,null,null,null,null,null,null,null,null,null,null,null,null,null,null,null,null,null,null,null,null,null,null,null,null,"245"]
[null,null,null,null,null,null,null,null,null,null,null,null,null,null,null,null,null,null,null,null,null,null,null,null,null,"246"]
[null,null,null,null,null,null,null,null,null,null,null,null,null,null,null,null,null,null,null,null,null,null,null,null,null,"247"]
[null,null,null,null,null,null,null,null,null,null,null,null,null,null,null,null,null,null,null,null,null,null,null,null,null,"248"]
[null,null,null,null,null,null,null,null,null,null,null,null,null,null,null,null,null,null,null,null,null,null,null,null,null,"249"]
[null,null,null,null,null,null,null,null,null,null,null,null,null,null,null,null,null,null,null,null,null,null,null,null,null,"250"]

{"sheet":"入力表（調査票形式）","index":1,"n_rows":60,"n_cols":14,"rows_kept":60,"cut":false,"hidden":false,"merged":[[2,2,2,3]]}
["様式Ⅲ－１　",null,null,"　食中毒調査票 入力用",null,null,"献立番号",1,"ちらし寿司セット"]
[null,null,null,"個人整理No．",9,"氏　名","test9",null,"発症有無",1]
["No.","ID","種別",null,"食べた","少し食べた","食べず","不明","これより右は入力禁止","食べた","少し","食べず","不明","計算式"]
[1,"040","31ちらし寿司","まぐろ",null,null,null,null,1,true,false,false,false,{"$f":"IFERROR(_xlfn.IFS(J4=TRUE,1,K4=TRUE,1,L4=TRUE,0,M4=TRUE,\"?\"),\"\")","v":1}]
[2,"035","31ちらし寿司","イカ",null,null,null,null,1,true,false,false,false,{"$f":"IFERROR(_xlfn.IFS(J5=TRUE,1,K5=TRUE,1,L5=TRUE,0,M5=TRUE,\"?\"),\"\")","v":1}]
[3,"039","31ちらし寿司","タコ",null,null,null,null,1,true,false,false,false,{"$f":"IFERROR(_xlfn.IFS(J6=TRUE,1,K6=TRUE,1,L6=TRUE,0,M6=TRUE,\"?\"),\"\")","v":1}]
[4,"038","31ちらし寿司","サーモン",null,null,null,null,1,true,false,false,false,{"$f":"IFERROR(_xlfn.IFS(J7=TRUE,1,K7=TRUE,1,L7=TRUE,0,M7=TRUE,\"?\"),\"\")","v":1}]
[5,"037","31ちらし寿司","カンパチ",null,null,null,null,1,true,false,false,false,{"$f":"IFERROR(_xlfn.IFS(J8=TRUE,1,K8=TRUE,1,L8=TRUE,0,M8=TRUE,\"?\"),\"\")","v":1}]
[6,"036","31ちらし寿司","えび",null,null,null,null,1,true,false,false,false,{"$f":"IFERROR(_xlfn.IFS(J9=TRUE,1,K9=TRUE,1,L9=TRUE,0,M9=TRUE,\"?\"),\"\")","v":1}]
[7,"041","31鉄火セット","うなぎ",null,null,null,null,1,false,true,false,false,{"$f":"IFERROR(_xlfn.IFS(J10=TRUE,1,K10=TRUE,1,L10=TRUE,0,M10=TRUE,\"?\"),\"\")","v":1}]
[8,"045","ちらし寿司","玉子",null,null,null,null,1,true,false,false,false,{"$f":"IFERROR(_xlfn.IFS(J11=TRUE,1,K11=TRUE,1,L11=TRUE,0,M11=TRUE,\"?\"),\"\")","v":1}]
[9,"044","ちらし寿司","いくら",null,null,null,null,1,true,false,false,false,{"$f":"IFERROR(_xlfn.IFS(J12=TRUE,1,K12=TRUE,1,L12=TRUE,0,M12=TRUE,\"?\"),\"\")","v":1}]
[10,"043","31握り","タイ",null,null,null,null,1,true,false,false,false,{"$f":"IFERROR(_xlfn.IFS(J13=TRUE,1,K13=TRUE,1,L13=TRUE,0,M13=TRUE,\"?\"),\"\")","v":1}]
[11,"031","デザート","メロン",null,null,null,null,1,true,false,false,false,{"$f":"IFERROR(_xlfn.IFS(J14=TRUE,1,K14=TRUE,1,L14=TRUE,0,M14=TRUE,\"?\"),\"\")","v":1}]
[12,"033","31セット","茶碗蒸し",null,null,null,null,1,true,false,false,false,{"$f":"IFERROR(_xlfn.IFS(J15=TRUE,1,K15=TRUE,1,L15=TRUE,0,M15=TRUE,\"?\"),\"\")","v":1}]
[13,"030","デザート","イチゴ",null,null,null,null,1,true,false,false,false,{"$f":"IFERROR(_xlfn.IFS(J16=TRUE,1,K16=TRUE,1,L16=TRUE,0,M16=TRUE,\"?\"),\"\")","v":1}]
[14,"032","31セット","コーヒー",null,null,null,null,1,true,false,false,false,{"$f":"IFERROR(_xlfn.IFS(J17=TRUE,1,K17=TRUE,1,L17=TRUE,0,M17=TRUE,\"?\"),\"\")","v":1}]
[15,"034","31セット","フルーツ",null,null,null,null,1,true,false,false,false,{"$f":"IFERROR(_xlfn.IFS(J18=TRUE,1,K18=TRUE,1,L18=TRUE,0,M18=TRUE,\"?\"),\"\")","v":1}]
[16,"052",null,"にぎりセット　りんご",null,null,null,null,1,true,false,false,false,{"$f":"IFERROR(_xlfn.IFS(J19=TRUE,1,K19=TRUE,1,L19=TRUE,0,M19=TRUE,\"?\"),\"\")","v":1}]
[17,"029","デザート","オレンジ",null,null,null,null,1,true,false,false,false,{"$f":"IFERROR(_xlfn.IFS(J20=TRUE,1,K20=TRUE,1,L20=TRUE,0,M20=TRUE,\"?\"),\"\")","v":1}]
[null,null,null,null,null,null,null,null,null,false,false,false,false,{"$f":"IFERROR(_xlfn.IFS(J21=TRUE,1,K21=TRUE,1,L21=TRUE,0,M21=TRUE,\"?\"),\"\")","v":""}]
[null,null,null,null,null,null,null,null,null,false,false,false,false,{"$f":"IFERROR(_xlfn.IFS(J22=TRUE,1,K22=TRUE,1,L22=TRUE,0,M22=TRUE,\"?\"),\"\")","v":""}]
[null,null,null,null,null,null,null,null,null,false,false,false,false,{"$f":"IFERROR(_xlfn.IFS(J23=TRUE,1,K23=TRUE,1,L23=TRUE,0,M23=TRUE,\"?\"),\"\")","v":""}]
[null,null,null,null,null,null,null,null,null,false,false,false,false,{"$f":"IFERROR(_xlfn.IFS(J24=TRUE,1,K24=TRUE,1,L24=TRUE,0,M24=TRUE,\"?\"),\"\")","v":""}]
[null,null,null,null,null,null,null,null,null,false,false,false,false,{"$f":"IFERROR(_xlfn.IFS(J25=TRUE,1,K25=TRUE,1,L25=TRUE,0,M25=TRUE,\"?\"),\"\")","v":""}]
[null,null,null,null,null,null,null,null,null,false,false,false,false,{"$f":"IFERROR(_xlfn.IFS(J26=TRUE,1,K26=TRUE,1,L26=TRUE,0,M26=TRUE,\"?\"),\"\")","v":""}]
[null,null,null,null,null,null,null,null,null,false,false,false,false,{"$f":"IFERROR(_xlfn.IFS(J27=TRUE,1,K27=TRUE,1,L27=TRUE,0,M27=TRUE,\"?\"),\"\")","v":""}]
[null,null,null,null,null,null,null,null,null,false,false,false,false,{"$f":"IFERROR(_xlfn.IFS(J28=TRUE,1,K28=TRUE,1,L28=TRUE,0,M28=TRUE,\"?\"),\"\")","v":""}]
[null,null,null,null,null,null,null,null,null,false,false,false,false,{"$f":"IFERROR(_xlfn.IFS(J29=TRUE,1,K29=TRUE,1,L29=TRUE,0,M29=TRUE,\"?\"),\"\")","v":""}]
[null,null,null,null,null,null,null,null,null,false,false,false,false,{"$f":"IFERROR(_xlfn.IFS(J30=TRUE,1,K30=TRUE,1,L30=TRUE,0,M30=TRUE,\"?\"),\"\")","v":""}]
[null,null,null,null,null,null,null,null,null,false,false,false,false,{"$f":"IFERROR(_xlfn.IFS(J31=TRUE,1,K31=TRUE,1,L31=TRUE,0,M31=TRUE,\"?\"),\"\")","v":""}]
[null,null,null,null,null,null,null,null,null,false,false,false,false,{"$f":"IFERROR(_xlfn.IFS(J32=TRUE,1,K32=TRUE,1,L32=TRUE,0,M32=TRUE,\"?\"),\"\")","v":""}]
[null,null,null,null,null,null,null,null,null,false,false,false,false,{"$f":"IFERROR(_xlfn.IFS(J33=TRUE,1,K33=TRUE,1,L33=TRUE,0,M33=TRUE,\"?\"),\"\")","v":""}]
[null,null,null,null,null,null,null,null,null,false,false,false,false,{"$f":"IFERROR(_xlfn.IFS(J34=TRUE,1,K34=TRUE,1,L34=TRUE,0,M34=TRUE,\"?\"),\"\")","v":""}]
[null,null,null,null,null,null,null,null,null,false,false,false,false,{"$f":"IFERROR(_xlfn.IFS(J35=TRUE,1,K35=TRUE,1,L35=TRUE,0,M35=TRUE,\"?\"),\"\")","v":""}]
[null,null,null,null,null,null,null,null,null,false,false,false,false,{"$f":"IFERROR(_xlfn.IFS(J36=TRUE,1,K36=TRUE,1,L36=TRUE,0,M36=TRUE,\"?\"),\"\")","v":""}]
[null,null,null,null,null,null,null,null,null,false,false,false,false,{"$f":"IFERROR(_xlfn.IFS(J37=TRUE,1,K37=TRUE,1,L37=TRUE,0,M37=TRUE,\"?\"),\"\")","v":""}]
[null,null,null,null,null,null,null,null,null,false,false,false,false,{"$f":"IFERROR(_xlfn.IFS(J38=TRUE,1,K38=TRUE,1,L38=TRUE,0,M38=TRUE,\"?\"),\"\")","v":""}]
[null,null,null,null,null,null,null,null,null,false,false,false,false,{"$f":"IFERROR(_xlfn.IFS(J39=TRUE,1,K39=TRUE,1,L39=TRUE,0,M39=TRUE,\"?\"),\"\")","v":""}]
[null,null,null,null,null,null,null,null,null,false,false,false,false,{"$f":"IFERROR(_xlfn.IFS(J40=TRUE,1,K40=TRUE,1,L40=TRUE,0,M40=TRUE,\"?\"),\"\")","v":""}]
[null,null,null,null,null,null,null,null,null,false,false,false,false,{"$f":"IFERROR(_xlfn.IFS(J41=TRUE,1,K41=TRUE,1,L41=TRUE,0,M41=TRUE,\"?\"),\"\")","v":""}]
[null,null,null,null,null,null,null,null,null,false,false,false,false,{"$f":"IFERROR(_xlfn.IFS(J42=TRUE,1,K42=TRUE,1,L42=TRUE,0,M42=TRUE,\"?\"),\"\")","v":""}]
[null,null,null,null,null,null,null,null,null,false,false,false,false,{"$f":"IFERROR(_xlfn.IFS(J43=TRUE,1,K43=TRUE,1,L43=TRUE,0,M43=TRUE,\"?\"),\"\")","v":""}]
[null,null,null,null,null,null,null,null,null,false,false,false,false,{"$f":"IFERROR(_xlfn.IFS(J44=TRUE,1,K44=TRUE,1,L44=TRUE,0,M44=TRUE,\"?\"),\"\")","v":""}]
[null,null,null,null,null,null,null,null,null,false,false,false,false,{"$f":"IFERROR(_xlfn.IFS(J45=TRUE,1,K45=TRUE,1,L45=TRUE,0,M45=TRUE,\"?\"),\"\")","v":""}]
[null,null,null,null,null,null,null,null,null,false,false,false,false,{"$f":"IFERROR(_xlfn.IFS(J46=TRUE,1,K46=TRUE,1,L46=TRUE,0,M46=TRUE,\"?\"),\"\")","v":""}]
[null,null,null,null,null,null,null,null,null,false,false,false,false,{"$f":"IFERROR(_xlfn.IFS(J47=TRUE,1,K47=TRUE,1,L47=TRUE,0,M47=TRUE,\"?\"),\"\")","v":""}]
[null,null,null,null,null,null,null,null,null,false,false,false,false,{"$f":"IFERROR(_xlfn.IFS(J48=TRUE,1,K48=TRUE,1,L48=TRUE,0,M48=TRUE,\"?\"),\"\")","v":""}]
[null,null,null,null,null,null,null,null,null,false,false,false,false,{"$f":"IFERROR(_xlfn.IFS(J49=TRUE,1,K49=TRUE,1,L49=TRUE,0,M49=TRUE,\"?\"),\"\")","v":""}]
[null,null,null,null,null,null,null,null,null,false,false,false,false,{"$f":"IFERROR(_xlfn.IFS(J50=TRUE,1,K50=TRUE,1,L50=TRUE,0,M50=TRUE,\"?\"),\"\")","v":""}]
[null,null,null,null,null,null,null,null,null,false,false,false,false,{"$f":"IFERROR(_xlfn.IFS(J51=TRUE,1,K51=TRUE,1,L51=TRUE,0,M51=TRUE,\"?\"),\"\")","v":""}]
[null,null,null,null,null,null,null,null,null,false,false,false,false,{"$f":"IFERROR(_xlfn.IFS(J52=TRUE,1,K52=TRUE,1,L52=TRUE,0,M52=TRUE,\"?\"),\"\")","v":""}]
[null,null,null,null,null,null,null,null,null,false,false,false,false,{"$f":"IFERROR(_xlfn.IFS(J53=TRUE,1,K53=TRUE,1,L53=TRUE,0,M53=TRUE,\"?\"),\"\")","v":""}]
[null,null,null,null,null,null,null,null,null,false,false,false,false,{"$f":"IFERROR(_xlfn.IFS(J54=TRUE,1,K54=TRUE,1,L54=TRUE,0,M54=TRUE,\"?\"),\"\")","v":""}]
[null,null,null,null,null,null,null,null,null,false,false,false,false,{"$f":"IFERROR(_xlfn.IFS(J55=TRUE,1,K55=TRUE,1,L55=TRUE,0,M55=TRUE,\"?\"),\"\")","v":""}]
[null,null,null,null,null,null,null,null,null,false,false,false,false,{"$f":"IFERROR(_xlfn.IFS(J56=TRUE,1,K56=TRUE,1,L56=TRUE,0,M56=TRUE,\"?\"),\"\")","v":""}]
[null,null,null,null,null,null,null,null,null,false,false,false,false,{"$f":"IFERROR(_xlfn.IFS(J57=TRUE,1,K57=TRUE,1,L57=TRUE,0,M57=TRUE,\"?\"),\"\")","v":""}]
[null,null,null,null,null,null,null,null,null,false,false,false,false,{"$f":"IFERROR(_xlfn.IFS(J58=TRUE,1,K58=TRUE,1,L58=TRUE,0,M58=TRUE,\"?\"),\"\")","v":""}]
[null,null,null,null,null,null,null,null,null,false,false,false,false,{"$f":"IFERROR(_xlfn.IFS(J59=TRUE,1,K59=TRUE,1,L59=TRUE,0,M59=TRUE,\"?\"),\"\")","v":""}]
[null,null,null,null,null,null,null,null,null,false,false,false,false,{"$f":"IFERROR(_xlfn.IFS(J60=TRUE,1,K60=TRUE,1,L60=TRUE,0,M60=TRUE,\"?\"),\"\")","v":""}]

{"sheet":"新入力表","index":2,"n_rows":41,"n_cols":76,"rows_kept":41,"cut":false,"hidden":true,"merged":[[2,3,4,3]]}
[null,null,"喫食入力Ver.3.0","（食べた、食べない調査です。このシートは献立が複数あり、しかも一部が重複するときに便利です。メニューの変更に対応します。）",null,null,null,null,null,null,null,null,null,null,null,null,null,null,null,null,null,null,null,null,null,"数",{"$f":"COUNTA(AA9:AA300)","v":0},{"$f":"COUNTA(AB9:AB300)","v":0},0,0,0,0,0,0,0,0,0,0,0,0,0,0,0,0,0,0,0,0,0,0,0,0,0,0,0,0,0,0,0,0,0,0,0,0,0,0,0,0,0,0,0,0,0,0,0,0]
[]
[null,null,{"$f":"CONCATENATE(\"入力件数 = \",COUNTA(AA6:MH6))","v":"入力件数 = 0"},"操作ﾒﾆｭｰの説明","メニュー整頓：喫食調査票どおりに入力するため、調査票の献立の位置にカーソルを置いてボタンをクリックしてください。"]
[null,null,null,null,"データ転記：入力結果からカイ２乗計算をするため、入力済みデータを集計表に貼り付けます。",null,null,null,null,null,null,null,null,null,null,null,null,null,null,null,null,null,null,null,null,"No",1,2,3,4,5,6,7,8,9,10,11,12,13,14,15,16,17,18,19,20,21,22,23,24,25,26,27,28,29,30,31,32,33,34,35,36,37,38,39,40,41,42,43,44,45,46,47,48,49,50]
[null,null,null,null,"フィルター：メニューの全てが表示されていないときクリックしてください。（On/Offになります）",null,null,null,null,null,null,null,null,null,null,null,null,null,null,null,null,null,null,null,null,"氏名"]
[null,{"$f":"CONCATENATE(\"表示行数 = \",SUBTOTAL(103,A9:A2015))","v":"表示行数 = 33"},null,1,2,3,4,5,6,7,8,9,10,11,12,13,14,15,16,17,18,19,20,21,22,"発症"]
[]
["No","種別","献立","未入力","未入力","未入力","未入力","未入力","未入力","未入力","未入力","未入力","未入力","未入力","未入力","未入力","未入力","未入力","未入力","未入力","未入力","未入力","未入力","未入力","未入力","入力","AA","AB","AC","AD","AE","AF","AG","AH","AI","AJ","AK","AL","AM","AN","AO","AP","AQ","AR","AS","AT","AU","AV","AW","AX","AY","AZ","BA","BB","BC","BD","BE","BF","BG","BH","BI","BJ","BK","BL","BM","BN","BO","BP","BQ","BR","BS","BT","BU","BV","BW","BX"]
[1]
[2]
[3]
[4]
[5]
[6]
[7]
[8]
[9]
[10]
[11]
[12]
[13]
[14]
[15]
[16]
[17]
[18]
[19]
[20]
[21]
[22]
[23]
[24]
[25]
[26]
[27]
[28]
[29]
[30]
[31]
[32]
[33]

{"sheet":"入力表（喫食）","index":3,"n_rows":75,"n_cols":346,"rows_kept":75,"cut":false,"hidden":false,"merged":[[10,2,10,3],[11,2,11,3],[12,2,12,3]]}
["Ａ列1行から10行まで、及びA1セルからＤ14セルまでは削除不可です",null,null,"種別","メニュー\n食品名\n（必須）"]
[]
[null,null,"発症者","食べた",{"$f":"COUNTIFS(発症,\"=1\", E$16:E$5016, \"=1\") + COUNTIFS(発症,\"=1\", E$16:E$5016, \"=0.99\")","v":26},25,27,23,25,{"$f":"COUNTIFS(発症,\"=1\", J$16:J$5016, \"=1\") + COUNTIFS(発症,\"=1\", J$16:J$5016, \"=0.99\")","v":23},{"$f":"COUNTIFS(発症,\"=1\", K$16:K$5016, \"=1\") + COUNTIFS(発症,\"=1\", K$16:K$5016, \"=0.99\")","v":24},{"$f":"COUNTIFS(発症,\"=1\", L$16:L$5016, \"=1\") + COUNTIFS(発症,\"=1\", L$16:L$5016, \"=0.99\")","v":27},{"$f":"COUNTIFS(発症,\"=1\", M$16:M$5016, \"=1\") + COUNTIFS(発症,\"=1\", M$16:M$5016, \"=0.99\")","v":25},{"$f":"COUNTIFS(発症,\"=1\", N$16:N$5016, \"=1\") + COUNTIFS(発症,\"=1\", N$16:N$5016, \"=0.99\")","v":24},22,18,24,11,{"$f":"COUNTIFS(発症,\"=1\", S$16:S$5016, \"=1\") + COUNTIFS(発症,\"=1\", S$16:S$5016, \"=0.99\")","v":16},20,19,28,15,18,8,17,17,16,15,0,0,0,0,0,0,0,0,0,0,0,0,0,0,0,0,0,0,0,0,4,20,7,8,6,6,5,4,4,7,6,5,11,16,13,6,2,5,4,{"$f":"COUNTIFS(発症,\"=1\", BQ$16:BQ$5016, \"=1\") + COUNTIFS(発症,\"=1\", BQ$16:BQ$5016, \"=0.99\")","v":2},5,6,14,21,0,16,6,4,3,2,3,3,2,2,2,1,3,0,0,0,0,0,0,0,0,0,0,0,0,0,0,0,0,0,0,0,0,0,0,0,0,0,0,0,0,0,0,0,0,0,0,0,0,0,0,0,0,0,0,0,0,0,0,{"$f":"COUNTIFS(発症,\"=1\", EC$16:EC$5016, \"=1\") + COUNTIFS(発症,\"=1\", EC$16:EC$5016, \"=0.99\")","v":0},0,0,0,0,0,0,0,0,0,0,0,0,0,0,0,0,0,0,0,0,0,0,0,0,0,0,0,0,0,0,0,0,0,0,0,0,0,0,0,0,0,0,0,0,0,0,0,0,0,0,0,0,0,0,0,0,0,0,0,0,0,0,0,{"$f":"COUNTIFS(発症,\"=1\", GO$16:GO$5016, \"=1\") + COUNTIFS(発症,\"=1\", GO$16:GO$5016, \"=0.99\")","v":0},0,0,0,0,0,0,0,0,0,0,0,0,0,0,0,0,0,0,0,0,0,0,0,0,0,0,0,0,0,0,0,0,0,0,0,0,0,0,0,0,0,0,0,0,0,0,0,0,0,0,0,0,0,0,0,0,0,0,0,0,0,0,0,{"$f":"COUNTIFS(発症,\"=1\", JA$16:JA$5016, \"=1\") + COUNTIFS(発症,\"=1\", JA$16:JA$5016, \"=0.99\")","v":0},0,0,0,0,0,0,0,0,0,0,0,0,0,0,0,0,0,0,0,0,0,0,0,0,0,0,0,0,0,0,0,0,0,0,0,0,0,0,0,0,0,0,0,0,0,0,0,0,0,0,0,0,0,0,0,0,0,0,0,0,0,0,0,{"$f":"COUNTIFS(発症,\"=1\", LM$16:LM$5016, \"=1\") + COUNTIFS(発症,\"=1\", LM$16:LM$5016, \"=0.99\")","v":0},0,0,0,0,0,0,0,0,0,0,0,0,0,0,0,0,0,0,0,0,0]
[null,null,"〃","食べない",{"$f":"COUNTIFS(発症,\"=1\", E$16:E$5016, \"=0\")","v":1},3,1,5,3,{"$f":"COUNTIFS(発症,\"=1\", J$16:J$5016, \"=0\")","v":5},{"$f":"COUNTIFS(発症,\"=1\", K$16:K$5016, \"=0\")","v":4},{"$f":"COUNTIFS(発症,\"=1\", L$16:L$5016, \"=0\")","v":1},{"$f":"COUNTIFS(発症,\"=1\", M$16:M$5016, \"=0\")","v":3},{"$f":"COUNTIFS(発症,\"=1\", N$16:N$5016, \"=0\")","v":4},6,9,3,2,{"$f":"COUNTIFS(発症,\"=1\", S$16:S$5016, \"=0\")","v":12},8,9,0,13,10,10,11,11,12,13,0,0,0,0,0,0,0,0,0,0,0,0,0,0,0,0,0,0,0,0,16,8,6,5,7,7,8,24,24,21,7,23,17,12,15,22,26,23,24,{"$f":"COUNTIFS(発症,\"=1\", BQ$16:BQ$5016, \"=0\")","v":11},8,7,14,7,13,12,7,24,25,26,25,24,11,11,11,12,10,0,0,0,0,0,0,0,0,0,0,0,0,0,0,0,0,0,0,0,0,0,0,0,0,0,0,0,0,0,0,0,0,0,0,0,0,0,0,0,0,0,0,0,0,0,0,{"$f":"COUNTIFS(発症,\"=1\", EC$16:EC$5016, \"=0\")","v":0},0,0,0,0,0,0,0,0,0,0,0,0,0,0,0,0,0,0,0,0,0,0,0,0,0,0,0,0,0,0,0,0,0,0,0,0,0,0,0,0,0,0,0,0,0,0,0,0,0,0,0,0,0,0,0,0,0,0,0,0,0,0,0,{"$f":"COUNTIFS(発症,\"=1\", GO$16:GO$5016, \"=0\")","v":0},0,0,0,0,0,0,0,0,0,0,0,0,0,0,0,0,0,0,0,0,0,0,0,0,0,0,0,0,0,0,0,0,0,0,0,0,0,0,0,0,0,0,0,0,0,0,0,0,0,0,0,0,0,0,0,0,0,0,0,0,0,0,0,{"$f":"COUNTIFS(発症,\"=1\", JA$16:JA$5016, \"=0\")","v":0},0,0,0,0,0,0,0,0,0,0,0,0,0,0,0,0,0,0,0,0,0,0,0,0,0,0,0,0,0,0,0,0,0,0,0,0,0,0,0,0,0,0,0,0,0,0,0,0,0,0,0,0,0,0,0,0,0,0,0,0,0,0,0,{"$f":"COUNTIFS(発症,\"=1\", LM$16:LM$5016, \"=0\")","v":0},0,0,0,0,0,0,0,0,0,0,0,0,0,0,0,0,0,0,0,0,0]
[null,null,"発症計",{"$f":"COUNTIF($D$16:$D$10000,\"=1\")","v":28},{"$f":"E3+E4","v":27},{"$f":"F3+F4","v":28},28,28,28,{"$f":"J3+J4","v":28},{"$f":"K3+K4","v":28},{"$f":"L3+L4","v":28},{"$f":"M3+M4","v":28},{"$f":"N3+N4","v":28},28,27,27,13,{"$f":"S3+S4","v":28},28,28,28,28,28,18,28,28,28,28,0,0,0,0,0,0,0,0,0,0,0,0,0,0,0,0,0,0,0,0,20,28,13,13,13,13,13,28,28,28,13,28,28,28,28,28,28,28,28,13,{"$f":"BR3+BR4","v":13},13,28,28,13,28,13,28,28,28,28,27,13,13,13,13,13,0,0,0,0,0,0,0,0,0,0,0,0,0,0,0,0,0,0,0,0,0,0,0,0,0,0,0,0,0,0,0,0,0,0,0,0,0,0,0,0,0,0,0,0,0,0,0,{"$f":"ED3+ED4","v":0},0,0,0,0,0,0,0,0,0,0,0,0,0,0,0,0,0,0,0,0,0,0,0,0,0,0,0,0,0,0,0,0,0,0,0,0,0,0,0,0,0,0,0,0,0,0,0,0,0,0,0,0,0,0,0,0,0,0,0,0,0,0,0,{"$f":"GP3+GP4","v":0},0,0,0,0,0,0,0,0,0,0,0,0,0,0,0,0,0,0,0,0,0,0,0,0,0,0,0,0,0,0,0,0,0,0,0,0,0,0,0,0,0,0,0,0,0,0,0,0,0,0,0,0,0,0,0,0,0,0,0,0,0,0,0,{"$f":"JB3+JB4","v":0},0,0,0,0,0,0,0,0,0,0,0,0,0,0,0,0,0,0,0,0,0,0,0,0,0,0,0,0,0,0,0,0,0,0,0,0,0,0,0,0,0,0,0,0,0,0,0,0,0,0,0,0,0,0,0,0,0,0,0,0,0,0,0,{"$f":"LN3+LN4","v":0},0,0,0,0,0,0,0,0,0,0,0,0,0,0,0,0,0,0,0,0]
[null,"しばらくお待ちください｡","健康者","食べた",{"$f":"COUNTIFS(発症,\"=0\", E$16:E$5016, \"=1\") + COUNTIFS(発症,\"=0\", E$16:E$5016, \"=0.99\")","v":5},8,6,7,6,{"$f":"COUNTIFS(発症,\"=0\", J$16:J$5016, \"=1\") + COUNTIFS(発症,\"=0\", J$16:J$5016, \"=0.99\")","v":7},{"$f":"COUNTIFS(発症,\"=0\", K$16:K$5016, \"=1\") + COUNTIFS(発症,\"=0\", K$16:K$5016, \"=0.99\")","v":4},{"$f":"COUNTIFS(発症,\"=0\", L$16:L$5016, \"=1\") + COUNTIFS(発症,\"=0\", L$16:L$5016, \"=0.99\")","v":6},{"$f":"COUNTIFS(発症,\"=0\", M$16:M$5016, \"=1\") + COUNTIFS(発症,\"=0\", M$16:M$5016, \"=0.99\")","v":7},{"$f":"COUNTIFS(発症,\"=0\", N$16:N$5016, \"=1\") + COUNTIFS(発症,\"=0\", N$16:N$5016, \"=0.99\")","v":3},3,2,1,0,{"$f":"COUNTIFS(発症,\"=0\", S$16:S$5016, \"=1\") + COUNTIFS(発症,\"=0\", S$16:S$5016, \"=0.99\")","v":0},0,0,5,0,0,0,0,0,2,1,0,0,3,3,2,2,3,0,0,0,0,0,0,0,3,0,0,0,0,0,0,5,1,3,2,3,1,3,2,4,3,1,5,5,3,3,1,2,0,{"$f":"COUNTIFS(発症,\"=0\", BQ$16:BQ$5016, \"=1\") + COUNTIFS(発症,\"=0\", BQ$16:BQ$5016, \"=0.99\")","v":1},1,1,5,6,0,2,2,2,1,1,1,3,0,0,0,0,2,0,0,0,0,0,0,0,0,0,0,0,0,0,0,0,0,0,0,0,0,0,0,0,0,0,0,0,0,0,0,0,0,0,0,0,0,0,0,0,0,0,0,0,0,0,0,{"$f":"COUNTIFS(発症,\"=0\", EC$16:EC$5016, \"=1\") + COUNTIFS(発症,\"=0\", EC$16:EC$5016, \"=0.99\")","v":0},0,0,0,0,0,0,0,0,0,0,0,0,0,0,0,0,0,0,0,0,0,0,0,0,0,0,0,0,0,0,0,0,0,0,0,0,0,0,0,0,0,0,0,0,0,0,0,0,0,0,0,0,0,0,0,0,0,0,0,0,0,0,0,{"$f":"COUNTIFS(発症,\"=0\", GO$16:GO$5016, \"=1\") + COUNTIFS(発症,\"=0\", GO$16:GO$5016, \"=0.99\")","v":0},0,0,0,0,0,0,0,0,0,0,0,0,0,0,0,0,0,0,0,0,0,0,0,0,0,0,0,0,0,0,0,0,0,0,0,0,0,0,0,0,0,0,0,0,0,0,0,0,0,0,0,0,0,0,0,0,0,0,0,0,0,0,0,{"$f":"COUNTIFS(発症,\"=0\", JA$16:JA$5016, \"=1\") + COUNTIFS(発症,\"=0\", JA$16:JA$5016, \"=0.99\")","v":0},0,0,0,0,0,0,0,0,0,0,0,0,0,0,0,0,0,0,0,0,0,0,0,0,0,0,0,0,0,0,0,0,0,0,0,0,0,0,0,0,0,0,0,0,0,0,0,0,0,0,0,0,0,0,0,0,0,0,0,0,0,0,0,{"$f":"COUNTIFS(発症,\"=0\", LM$16:LM$5016, \"=1\") + COUNTIFS(発症,\"=0\", LM$16:LM$5016, \"=0.99\")","v":0},0,0,0,0,0,0,0,0,0,0,0,0,0,0,0,0,0,0,0,0,0]
[null,null,"〃","食べない",{"$f":"COUNTIFS(発症,\"=0\", E$16:E$5016, \"=0\")","v":1},1,3,2,3,{"$f":"COUNTIFS(発症,\"=0\", J$16:J$5016, \"=0\")","v":2},{"$f":"COUNTIFS(発症,\"=0\", K$16:K$5016, \"=0\")","v":2},{"$f":"COUNTIFS(発症,\"=0\", L$16:L$5016, \"=0\")","v":3},{"$f":"COUNTIFS(発症,\"=0\", M$16:M$5016, \"=0\")","v":2},{"$f":"COUNTIFS(発症,\"=0\", N$16:N$5016, \"=0\")","v":3},3,4,4,"2025-07-27T22:01:37",{"$f":"COUNTIFS(発症,\"=0\", S$16:S$5016, \"=0\")","v":5},5,5,0,6,6,6,6,6,4,4,0,0,0,0,1,1,0,0,0,0,0,0,0,0,0,0,0,0,0,0,4,3,3,1,2,1,3,5,6,4,1,7,3,3,5,5,7,6,8,{"$f":"COUNTIFS(発症,\"=0\", BQ$16:BQ$5016, \"=0\")","v":3},3,3,4,3,4,6,2,6,7,7,7,5,4,4,4,4,2,0,0,0,0,0,0,0,0,0,0,0,0,0,0,0,0,0,0,0,0,0,0,0,0,0,0,0,0,0,0,0,0,0,0,0,0,0,0,0,0,0,0,0,0,0,0,{"$f":"COUNTIFS(発症,\"=0\", EC$16:EC$5016, \"=0\")","v":0},0,0,0,0,0,0,0,0,0,0,0,0,0,0,0,0,0,0,0,0,0,0,0,0,0,0,0,0,0,0,0,0,0,0,0,0,0,0,0,0,0,0,0,0,0,0,0,0,0,0,0,0,0,0,0,0,0,0,0,0,0,0,0,{"$f":"COUNTIFS(発症,\"=0\", GO$16:GO$5016, \"=0\")","v":0},0,0,0,0,0,0,0,0,0,0,0,0,0,0,0,0,0,0,0,0,0,0,0,0,0,0,0,0,0,0,0,0,0,0,0,0,0,0,0,0,0,0,0,0,0,0,0,0,0,0,0,0,0,0,0,0,0,0,0,0,0,0,0,{"$f":"COUNTIFS(発症,\"=0\", JA$16:JA$5016, \"=0\")","v":0},0,0,0,0,0,0,0,0,0,0,0,0,0,0,0,0,0,0,0,0,0,0,0,0,0,0,0,0,0,0,0,0,0,0,0,0,0,0,0,0,0,0,0,0,0,0,0,0,0,0,0,0,0,0,0,0,0,0,0,0,0,0,0,{"$f":"COUNTIFS(発症,\"=0\", LM$16:LM$5016, \"=0\")","v":0},0,0,0,0,0,0,0,0,0,0,0,0,0,0,0,0,0,0,0,0,0]
[null,null,"健康計",{"$f":"COUNTIF($D$16:$D$10000,\"=0\")","v":9},{"$f":"E6+E7","v":6},{"$f":"F6+F7","v":9},9,9,9,{"$f":"J6+J7","v":9},{"$f":"K6+K7","v":6},{"$f":"L6+L7","v":9},{"$f":"M6+M7","v":9},{"$f":"N6+N7","v":6},6,6,5,45865.91778935185,{"$f":"S6+S7","v":5},5,5,5,6,6,6,6,6,6,5,0,0,3,3,3,3,3,0,0,0,0,0,0,0,3,0,0,0,0,0,4,8,4,4,4,4,4,8,8,8,4,8,8,8,8,8,8,8,8,4,{"$f":"BR6+BR7","v":4},4,9,9,4,8,4,8,8,8,8,8,4,4,4,4,4,0,0,0,0,0,0,0,0,0,0,0,0,0,0,0,0,0,0,0,0,0,0,0,0,0,0,0,0,0,0,0,0,0,0,0,0,0,0,0,0,0,0,0,0,0,0,0,{"$f":"ED6+ED7","v":0},0,0,0,0,0,0,0,0,0,0,0,0,0,0,0,0,0,0,0,0,0,0,0,0,0,0,0,0,0,0,0,0,0,0,0,0,0,0,0,0,0,0,0,0,0,0,0,0,0,0,0,0,0,0,0,0,0,0,0,0,0,0,0,{"$f":"GP6+GP7","v":0},0,0,0,0,0,0,0,0,0,0,0,0,0,0,0,0,0,0,0,0,0,0,0,0,0,0,0,0,0,0,0,0,0,0,0,0,0,0,0,0,0,0,0,0,0,0,0,0,0,0,0,0,0,0,0,0,0,0,0,0,0,0,0,{"$f":"JB6+JB7","v":0},0,0,0,0,0,0,0,0,0,0,0,0,0,0,0,0,0,0,0,0,0,0,0,0,0,0,0,0,0,0,0,0,0,0,0,0,0,0,0,0,0,0,0,0,0,0,0,0,0,0,0,0,0,0,0,0,0,0,0,0,0,0,0,{"$f":"LN6+LN7","v":0},0,0,0,0,0,0,0,0,0,0,0,0,0,0,0,0,0,0,0,0]
[null,null,"発症不明",{"$f":"COUNTIF(D$16:D$10000,\"?\")","v":0}]
[{"$f":"MAX(INDEX(($A$15:$A$100000<>\"\")*ROW($A$15:$A$100000), 0))","v":75},null,"合計",{"$f":"MAX(INDEX(($A$16:$A$10000<>\"\")*ROW($A$16:$A$10000), 0))-15","v":60},{"$f":"COUNTA(E16:E1000)","v":33},{"$f":"COUNTA(F16:F1000)","v":37},{"$f":"COUNTA(G16:G1000)","v":37},{"$f":"COUNTA(H16:H1000)","v":37},38,{"$f":"COUNTA(J16:J1000)","v":38},{"$f":"COUNTA(K16:K1000)","v":35},{"$f":"COUNTA(L16:L1000)","v":38},{"$f":"COUNTA(N36:N1000)","v":17},{"$f":"COUNTA(M16:M1000)","v":38},{"$f":"COUNTA(O36:O1000)","v":17},{"$f":"COUNTA(P16:P1000)","v":35},34,17,{"$f":"COUNTA(S16:S1000)","v":35},35,35,35,36,36,25,36,36,36,35,0,0,3,3,3,3,3,0,0,0,0,0,0,0,3,0,0,0,0,0,24,38,19,19,19,19,19,38,38,38,19,38,38,38,38,38,38,38,38,19,19,19,39,39,19,38,19,38,38,38,{"$f":"COUNTA(CB16:CB1000)","v":38},37,19,19,19,19,19,0,0,0,0,0,0,0,0,0,0,0,0,0,0,0,0,0,0,0,0,0,0,0,0,0,0,0,0,0,0,0,0,0,0,0,0,0,0,0,0,0,0,0,0,0,0,0,0,0,0,0,0,0,0,0,0,0,{"$f":"COUNTA(EN16:EN1000)","v":0},0,0,0,0,0,0,0,0,0,0,0,0,0,0,0,0,0,0,0,0,0,0,0,0,0,0,0,0,0,0,0,0,0,0,0,0,0,0,0,0,0,0,0,0,0,0,0,0,0,0,0,0,0,0,0,0,0,0,0,0,0,0,0,{"$f":"COUNTA(GZ16:GZ1000)","v":0},0,0,0,0,0,0,0,0,0,0,0,0,0,0,0,0,0,0,0,0,0,0,0,0,0,0,0,0,0,0,0,0,0,0,0,0,0,0,0,0,0,0,0,0,0,0,0,0,0,0,0,0,0,0,0,0,0,0,0,0,0,0,0,{"$f":"COUNTA(JL16:JL1000)","v":0},0,0,0,0,0,0,0,0,0,0,0,0,0,0,0,0,0,0,0,0,0,0,0,0,0,0,0,0,0,0,0,0,0,0,0,0,0,0,0,0,0,0,0,0,0,0,0,0,0,0,0,0,0,0,0,0,0,0,0,0,0,0,0,{"$f":"COUNTA(LX16:LX1000)","v":0},0,0,0,0,0,0,0,0,0,0]
[null,null,"食品ID",null,"001","002","003","004","005","006","007","008","009","010","011","012","013","014","015","016","017","018","019","020","021","022","023","024","025","026","027","028","029","030","031","032","033","034","035","036","037","038","039","040","041","042","043","044","045","046","047","048","049","050","051","052","053","054","055","056","057"]
[null,null,"種別",null,"天ぷら","天ぷら","天ぷら","天ぷら","天ぷら","天ぷら","天ぷら","天ぷら","天ぷら","天ぷら","造り","既製品","酢の物","造り","酢の物","酢の物","たきもの","たきもの","たきもの","たきもの","たきもの","ちらし寿司","ちらし寿司","ちらし寿司","ちらし寿司","ちらし寿司","ちらし寿司","ちらし寿司","ちらし寿司","ちらし寿司","ちらし寿司","弁当","弁当","デザート","デザート","デザート","31セット","31セット","31セット","31ちらし寿司","31ちらし寿司","31ちらし寿司","31ちらし寿司","31ちらし寿司","31ちらし寿司","31鉄火セット","31鉄火セット","31握り","ちらし寿司","ちらし寿司","にぎりセット","にぎりセット","ちらし寿司","弁当",null,"k","ppp"]
[null,null,"メニュー\n食品名\n（必須）",null,"いも","さかな","イカ","とりにく","タコ","さといも","やまいも","塩","ナス","かぼちゃ","サーモン","卵焼き","タコ","イカ","わかめ","きゅうり","大根","人参","スナップエンドウ","タケノコ","シイタケ","おぼろ","マメ","うなぎ","うなぎ","ノリ","ノリ","錦糸卵","錦糸卵","しょうが","しょうが","焼魚","焼魚","オレンジ","イチゴ","メロン","コーヒー","茶碗蒸し","フルーツ","イカ","えび","カンパチ","サーモン","タコ","まぐろ","うなぎ","鉄火１本","タイ","いくら","玉子","お茶","がり","しょうが","焼魚","ｋ","l","ppp"]
[]
["Ｎｏ","グループ","氏名","発症","E","F","G","H","I","J","K","M","L","N","O","P","Q","R","T","S","U","V","W","X","Y","Z","AA","AB","AC","AD","AE","AF","AG","AH","AI","AJ","AK","AL","AM","AN","AO","AP","AQ","AR","AS","AT","AU","AV","AW","AX","AY","AZ","BA","BB","BC","BD","BE","BF","BG","BH","BI","BJ","BK","BL","BM","BN","BO","BP","BQ","BR","BS","BT","BU","BV","BW","BX","BY","BZ","CA","CB","CC","CD","CE","CF","CG","CH","CI","CJ","CK","CL","CM","CN","CO","CP","CQ","CR","CS","CT","CU","CV","CW","CX","CY","CZ","DA","DB","DC","DD","DE","DF","DG","DH","DI","DJ","DK","DL","DM","DN","DO","DP","DQ","DR","DS","DT","DU","DV","DW","DX","DY","DZ","EA","EB","EC","ED","EE","EF","EG","EH","EI","EJ","EK","EL","EM","EN","EO","EP","EQ","ER","ES","ET","EU","EV","EW","EX","EY","EZ","FA","FB","FC","FD","FE","FF","FG","FH","FI","FJ","FK","FL","FM","FN","FO","FP","FQ","FR","FS","FT","FU","FV","FW","FX","FY","FZ","GA","GB","GC","GD","GE","GF","GG","GH","GI","GJ","GK","GL","GM","GN","GO","GP","GQ","GR","GS","GT","GU","GV","GW","GX","GY","GZ","HA","HB","HC","HD","HE","HF","HG","HH","HI","HJ","HK","HL","HM","HN","HO","HP","HQ","HR","HS","HT","HU","HV","HW","HX","HY","HZ","IA","IB","IC","ID","IE","IF","IG","IH","II","IJ","IK","IL","IM","IN","IO","IP","IQ","IR","IS","IT","IU","IV","IW","IX","IY","IZ","JA","JB","JC","JD","JE","JF","JG","JH","JI","JJ","JK","JL","JM","JN","JO","JP","JQ","JR","JS","JT","JU","JV","JW","JX","JY","JZ","KA","KB","KC","KD","KE","KF","KG","KH","KI","KJ","KK","KL","KM","KN","KO","KP","KQ","KR","KS","KT","KU","KV","KW","KX","KY","KZ","LA","LB","LC","LD","LE","LF","LG","LH","LI","LJ","LK","LL","LM","LN","LO","LP","LQ","LR","LS","LT","LU","LV","LW","LX","LY","LZ","MA","MB","MC","MD","ME","MF","MG","MH"]
[1,"遊月","池01",1,1,1,1,1,1,1,1,1,1,1,1,1,1,null,1,0,1,1,1,1,0,1,1,1,1,null,null,null,null,null,null,null,null,null,null,null,null,null,null,null,null,null,null,null,null,0,0,null,null,null,null,null,0,0,0,null,1,0,1,0,0,0,0,0,null,null,null,1,1,null,1,null,0,0,0,0,0]
[2,"遊月","池02",1,1,1,1,1,1,1,1,1,1,1,1,1,1,null,0,1,1,1,1,1,1,1,1,1,0,null,null,null,null,null,null,null,null,null,null,null,null,null,null,null,null,null,null,null,null,0,0,null,null,null,null,null,1,1,1,null,0,0,0,1,0,0,0,0,null,null,null,1,1,null,1,null,0,0,0,0,0]
[3,"遊月","池03",1,1,1,1,1,1,1,1,1,1,1,1,1,1,null,1,1,1,1,0,0,0,0,0,0,1,null,null,null,null,null,null,null,null,null,null,null,null,null,null,null,null,null,null,null,null,0,0,null,null,null,null,null,0,0,0,null,0,0,1,0,1,0,0,0,null,null,null,1,1,null,1,null,0,0,0,0,0]
[4,"遊月","池04",1,1,1,1,0,1,0,1,1,1,1,1,null,null,null,1,1,0,1,1,1,1,1,1,0,0,null,null,null,null,null,null,null,null,null,null,null,null,null,null,null,null,null,null,null,null,0,1,null,null,null,null,null,0,0,0,null,0,1,1,0,1,0,0,1,null,null,null,1,1,null,1,null,0,0,0,0,0]
[5,"遊月","池05",0,1,0,0,0,0,0,1,0,0,0,0,0,null,null,null,null,null,null,0,0,0,0,0,1,0,null,null,null,null,null,null,null,null,null,null,null,null,null,null,null,null,null,null,null,null,0,0,null,null,null,null,null,1,1,0,null,0,0,0,0,0,0,0,0,null,null,null,0,0,null,0,null,0,0,0,0,0]
[6,"遊月","池06",1,1,1,1,1,1,1,1,1,1,1,1,1,1,null,1,1,1,1,0,0,0,0,1,1,1,null,null,null,null,null,null,null,null,null,null,null,null,null,null,null,null,null,null,null,null,0,1,null,null,null,null,null,0,0,1,null,0,1,1,1,0,0,0,0,null,null,null,0,1,null,1,null,0,0,0,0,0]
[7,"遊月","池07",1,1,1,1,1,1,1,1,1,1,1,1,1,0,null,0,1,0,1,0,0,0,1,0,0,0,null,null,null,null,null,null,null,null,null,null,null,null,null,null,null,null,null,null,null,null,0,1,null,null,null,null,null,0,0,0,null,1,0,1,0,0,0,0,0,null,null,null,0,1,null,1,null,0,0,0,0,0]
[8,"遊月","池08",0,1,1,1,1,1,1,1,1,1,1,1,0,0,null,0,0,0,1,0,0,0,0,0,0,0,null,null,null,null,null,null,null,null,null,null,null,null,null,null,null,null,null,null,null,null,0,1,null,null,null,null,null,1,0,1,null,0,1,1,1,0,0,0,0,null,null,null,1,1,null,1,null,0,0,0,0,0]
[9,"遊月","池09",0,1,1,0,0,0,0,1,1,1,1,1,1,0,null,0,0,0,1,0,0,0,0,0,0,1,null,null,null,null,null,null,null,null,null,null,null,null,null,null,null,null,null,null,null,null,0,0,null,null,null,null,null,0,0,0,null,1,1,1,0,1,0,0,0,null,null,null,0,0,null,1,null,0,0,0,0,0]
[10,"遊月","池10",1,1,1,1,0,1,1,1,1,1,1,1,1,1,null,1,1,1,1,1,1,1,1,1,1,1,null,null,null,null,null,null,null,null,null,null,null,null,null,null,null,null,null,null,null,null,1,1,null,null,null,null,null,0,0,0,null,1,1,1,1,0,1,1,1,null,null,null,1,1,null,1,null,0,1,1,1,1]
[11,"遊月","池11",1,1,1,1,1,1,1,1,1,1,1,1,1,1,null,0,0,0,1,0,0,0,0,1,0,0,null,null,null,null,null,null,null,null,null,null,null,null,null,null,null,null,null,null,null,null,0,1,null,null,null,null,null,0,0,0,null,1,1,0,0,1,0,0,0,null,null,null,0,1,null,1,null,0,0,0,0,0]
[12,"遊月","池12"]
[13,"遊月","池13",1,1,0,1,0,0,1,1,1,1,1,1,1,1,null,0,0,1,1,1,1,1,1,0,0,1,null,null,null,null,null,null,null,null,null,null,null,null,null,null,null,null,null,null,null,null,1,1,null,null,null,null,null,0,0,0,null,0,0,0,1,0,0,1,0,null,null,null,1,1,null,1,null,0,1,0,0,0]
[14,"遊月","池14",1,1,1,1,1,1,1,1,1,1,1,1,1,1,null,1,1,0,1,0,0,1,0,1,1,0,null,null,null,null,null,null,null,null,null,null,null,null,null,null,null,null,null,null,null,null,0,0,null,null,null,null,null,0,0,0,null,0,0,0,0,0,0,0,0,null,null,null,0,0,null,0,null,0,0,0,0,0]
[15,"遊月","池15",1,1,1,1,1,1,1,1,1,1,1,1,1,1,null,1,1,1,1,0,1,0,0,1,0,0,null,null,null,null,null,null,null,null,null,null,null,null,null,null,null,null,null,null,null,null,0,1,null,null,null,null,null,1,0,0,null,0,1,1,1,0,0,0,0,null,null,null,1,0,null,0,null,1,0,0,0,0]
[16,"遊月","池16",1,1,1,1,1,1,1,1,1,1,1,1,1,1,null,1,1,1,1,0,1,0,1,1,1,1,null,null,null,null,null,null,null,null,null,null,null,null,null,null,null,null,null,null,null,null,0,0,null,null,null,null,null,1,0,1,null,0,0,0,0,0,0,0,0,null,null,null,0,0,null,0,null,0,0,0,0,0]
[17,"遊月","池17",1,1,1,1,1,1,1,1,1,1,1,1,1,1,null,1,1,1,1,1,1,0,0,1,1,1,null,null,null,null,null,null,null,null,null,null,null,null,null,null,null,null,null,null,null,null,0,1,null,null,null,null,null,0,0,0,null,0,0,0,0,0,0,0,0,null,null,null,1,1,null,1,null,0,0,0,0,0]
[18,"遊月","池18",1,1,1,1,1,1,1,1,1,1,1,1,1,1,null,1,1,1,1,1,1,1,1,1,1,1,null,null,null,null,null,null,null,null,null,null,null,null,null,null,null,null,null,null,null,null,1,1,null,null,null,null,null,0,0,0,null,0,1,1,1,0,0,0,0,null,null,null,0,1,null,1,null,1,0,0,0]
[19,"遊月","池19",1,1,1,1,1,1,1,1,1,1,1,1,1,1,null,0,1,1,1,1,1,1,1,1,1,1,null,null,null,null,null,null,null,null,null,null,null,null,null,null,null,null,null,null,null,null,0,1,null,null,null,null,null,1,1,1,null,0,0,1,0,0,0,0,1,null,null,null,1,1,null,1,null,1,1,1,1,0]
[20,"遊月","池20",0,1,1,1,1,1,1,1,1,1,1,1,1,0,null,0,0,0,1,0,0,0,0,0,0,0,null,null,null,null,null,null,null,null,null,null,null,null,null,null,null,null,null,null,null,null,0,1,null,null,null,null,null,0,0,0,null,0,1,1,1,1,0,1,0,null,null,null,1,1,null,0,null,0,0,0,0,1]
[21,"未入力"]
[22,"未入力"]
[23,"遊月","池23",1,0,0,0,0,0,0,0,1,0,0,0,0,0,1,0,0,1,1,0,1,null,0,0,1,1,null,null,null,null,null,null,null,null,null,null,null,null,null,null,null,null,null,null,null,null,1,0,0,0,0,0,1,0,0,0,0,0,0,0,0,0,0,0,0,0,0,0,0,0,0,0,0,0,0,0,1,1,1,1,1,0,0]
[24,"空白","池24",1,1,1,1,1,1,1,1,1,1,1,1,1,1,1,1,1,1,1,1,1,null,1,0,1,1,null,null,null,null,null,null,null,null,null,null,null,null,null,null,null,null,null,null,null,null,null,1,1,1,1,1,1,0,0,0,1,0,0,1,1,0,0,1,0,0,0,1,1,1,0,0,1,0,0,0,0,0,1,1,1,1,1]
[25,"空白","池25",1,1,1,1,1,1,1,1,1,1,1,1,0,1,1,1,1,1,1,1,1,null,1,1,1,0,null,null,null,null,null,null,null,null,null,null,null,null,null,null,null,null,null,null,null,null,0,1,0,0,0,0,0,0,0,0,0,0,0,0,1,1,0,1,0,1,1,1,1,1,0,0,1,0,0,0,0,0,0,0,0,0,0]
[26,"空白","池26",1,1,1,1,1,1,1,1,1,1,1,1,1,1,1,1,0,1,1,1,1,null,1,1,0,0,null,null,null,null,null,null,null,null,null,null,null,null,null,null,null,null,null,null,null,null,null,1,1,1,1,1,0,0,0,0,1,1,1,1,1,1,1,1,1,1,1,1,0,1,0,1,1,0,0,0,0,0,0,0,0,0,0]
[27,"空白","池27",1,1,1,1,1,1,0,1,1,1,1,0,0,1,1,0,1,0,1,0,0,null,0,1,1,1,null,null,null,null,null,null,null,null,null,null,null,null,null,null,null,null,null,null,null,null,null,1,1,1,1,1,1,0,0,0,1,0,1,1,0,1,0,0,0,0,0,0,1,1,0,1,0,0,0,0,0,0,0,0,0,0,0]
[28,"空白","池28",1,1,1,1,1,1,0,1,1,1,1,0,0,1,1,0,1,1,1,1,1,null,1,0,0,0,null,null,null,null,null,null,null,null,null,null,null,null,null,null,null,null,null,null,null,null,0,0,0,0,0,0,0,0,0,0,0,0,0,0,0,0,0,0,0,0,0,0,0,0,0,0,0,0,0,0,0,0,0,0,0,0,0]
[29,"空白"]
[30,"空白","池30",1,1,1,1,1,1,1,1,1,1,0,1,0,1,1,1,0,0,1,0,0,0,0,0,0,0,null,null,null,null,null,null,null,null,null,null,null,null,null,null,null,null,null,null,null,null,null,1,0,1,0,0,1,0,0,1,1,0,0,1,1,0,0,0,0,0,1,0,0,1,0,1,0,0,0,0,0,0,0,0,0,0,0]
[31,"空白","池31",0,0,1,1,1,1,1,0,0,1,0,0,0,0,0,0,0,0,1,0,0,0,0,0,0,null,null,null,null,null,null,null,null,null,null,null,null,null,null,null,null,null,null,null,null,null,null,1,1,1,1,1,0,0,0,1,1,0,1,1,0,0,0,0,0,0,0,0,0,0,0,0,1,1,0,0,0,0,0,0,0,0,1]
[32,"空白","池32",1,1,1,1,1,1,1,1,1,1,1,1,1,1,1,1,1,1,1,1,1,1,1,1,1,1,null,null,null,null,null,null,null,null,null,null,null,null,null,null,null,null,null,null,null,null,null,1,1,1,0,0,0,0,0,0,1,0,1,1,1,0,0,0,0,0,0,0,0,0,0,1,0,1,0,0,0,0,0,0,0,0,0]
[33,"遊月",null,null,null,null,null,null,1,1,0,1,0,0,0,0,0,0,0,0,0,1,0,0,0,0,0,0,0,null,null,null,null,null,null,null,null,null,null,null,null,null,null,null,null,null,null,null,null,null,1,1,1,1,1,0,0,0,0,0,0,0,0,1,0,0,0,0,0,0,1,1,1,0,0,1,0,0,0,0,0,0,0,0,0,0]
[34,"空白"]
[35,"空白","池35",1,1,1,1,1,1,1,0,1,0,0,0,0,0,0,0,0,0,1,0,0,0,0,0,0,0,null,null,null,null,null,null,null,null,null,null,null,null,null,null,null,null,null,null,null,null,null,1,1,1,1,1,0,0,0,0,0,0,0,0,1,0,0,0,0,0,0,1,1,1,0,0,1,0,0,0,0,0,0,0,0,0,0]
[36,"未入力"]
[37,"未入力"]
[38,"遊月","池38",1,null,1,1,1,1,1,1,1,1,1,1,0,1,1,0,0,0,1,1,1,null,1,1,1,1,null,null,null,null,null,null,null,null,null,null,null,null,null,null,null,null,null,null,null,null,0,1,0,0,0,0,0,0,0,1,1,0,1,1,0,0,0,0,0,0,0,0,0,1,0,0,0,0,0,0,0,0,0,0,0,0,1]
[39,"未入力","池39",1,1,1,1,1,1,1,1,1,1,1,1,1,1,1,0,1,1,1,0,0,null,0,0,0,0,null,null,null,null,null,null,null,null,null,null,null,null,null,null,null,null,null,null,null,null,0,0,0,0,0,0,0,0,0,0,0,0,0,0,0,0,0,0,0,0,0,0,0,0,0,0,0,0,0,0,0,0,0,0,0,0,0]
[40,"未入力"]
[41,"未入力"]
[42,"未入力"]
[43,"未入力"]
[44,"未入力"]
[45,"未入力","池45",1,1,1,1,1,0,1,0,1,1,1,0,0,1,1,1,1,1,1,1,1,null,1,0,1,1,null,null,null,null,null,null,null,null,null,null,null,null,null,null,null,null,null,null,null,null,null,1,1,1,1,1,0,0,1,1,0,0,0,0,0,0,0,0,0,0,1,1,0,1,0,0,1,0,0,0,0,1,0,0,0,0,1]
[46,"未入力","池46",0,1,1,0,1,0,1,0,0,0,0,0,0,1,0,0,0,0,1,0,0,0,0,0,1,0,null,null,null,null,null,null,null,null,null,null,null,null,null,null,null,null,null,null,null,null,null,1,0,1,1,1,0,0,1,1,0,0,0,0,0,0,0,0,0,0,1,0,0,1,0,0,1,0,0,0,0,1,0,0,0,0,0]
[47,"遊月",null,null,null,null,null,null,null,null,null,null,null,0,0,0,1,0,0,1,0,1,0,0,null,1,0,0,0,null,null,null,null,null,null,null,null,null,null,null,null,null,null,null,null,null,null,null,null,null,1,1,1,1,1,1,0,1,0,0,0,1,1,1,0,0,0,0,0,1,1,1,1,0,0,1,0,0,0,0,0,0,0,0,0,0]
[48,"未入力"]
[49,"未入力","池49",1,1,0,1,0,1,0,0,0,0,0,0,0,1,0,0,1,0,1,0,0,null,1,0,0,0,null,null,null,null,null,null,null,null,null,null,null,null,null,null,null,null,null,null,null,null,null,1,1,1,1,1,1,0,1,0,0,0,1,1,1,0,0,0,0,0,1,1,1,1,0,0,1,0,0,0,0,0,0,0,0,0,0]
[50,"未入力"]
[51,"未入力"]
[52,"未入力"]
[53,"未入力"]
[54,"未入力"]
[55,"未入力"]
[56,"未入力"]
[57,"うたげ","池57",0,null,1,1,1,1,1,null,1,1,null,null,null,null,null,null,null,null,null,null,null,null,null,null,null,null,null,null,1,1,0,0,1,null,null,null,null,null,null,null,1,null,null,null,null,null,null,1,0,1,0,1,1,1,0,1,1,0,1,1,1,0,1,1,0,1,0,1,1,1,0,0,0,1,1,1,1,0,0,0,0,0,0]
[58,"うたげ","池58",0,null,1,1,1,1,1,null,1,1,null,null,null,null,null,null,null,null,null,null,null,null,null,null,null,null,null,null,1,1,1,1,1,null,null,null,null,null,null,null,1,null,null,null,null,null,null,0,0,0,0,0,0,0,0,0,1,0,0,0,0,1,0,0,0,0,0,0,1,1,0,0,0,0,0,0,0,1,0,0,0,0,1]
[59,"未入力","池59",0,null,1,1,1,1,1,null,1,1,null,null,null,null,null,null,null,null,null,null,null,null,null,null,null,null,null,null,1,1,1,1,1,null,null,null,null,null,null,null,1,null,null,null,null,null,null,null,null,null,null,null,null,null,null,null,null,null,null,null,null,null,null,null,null,null,null,null,1,1]
[60,"CH"]

{"sheet":"使い方（メニュー整理用）","index":4,"n_rows":0,"n_cols":0,"rows_kept":0,"cut":false,"hidden":false,"merged":[]}

{"sheet":"カイ2乗表","index":5,"n_rows":331,"n_cols":18,"rows_kept":331,"cut":false,"hidden":false,"merged":[[7,5,7,7],[7,8,7,10],[7,11,8,11],[7,12,7,13]]}
[null,null,null,null,null,null,null,{"$f":"IF(AND(F1=\"\",G1=\"\"),\"\",F1+G1)","v":""},null,null,{"$f":"IF(AND(I1=\"\",J1=\"\"),\"\",I1+J1)","v":""},{"$f":"IF(AND(F1=\"\",G1=\"\",I1=\"\",J1=\"\"),\"\",(+F1+G1+I1+J1))","v":""},{"$f":"IF((F1+G1)=0,\"\",+F1/(F1+G1))","v":""},{"$f":"IF((I1+J1)=0,\"\",+I1/(I1+J1))","v":""},{"$f":"IF(AND(F1=0,G1=0,I1=0,J1=0),\"\",IF((F1*J1-G1*I1)>0,\"　  > \",IF((F1*J1-G1*I1)<0,\"　  < \",\"    = \")))","v":""},{"$f":"IF(F1+G1+I1+J1=0,\"\",IF((F1*J1-G1*I1)<=0,\"     - \",IF(AND(F1>5,G1>5,I1>5,J1>5),((F1*J1-G1*I1)^2*(F1+G1+I1+J1)/((F1+I1)*(G1+J1)*(F1+G1)*(I1+J1))),((F1*J1-G1*I1)-(F1+G1+I1+J1)/2)^2*(F1+G1+I1+J1)/((F1+I1)*(G1+J1)*(F1+G1)*(I1+J1)))))","v":""},{"$f":"IF(AND(F1=0,G1=0,I1=0,J1=0),\"\",IF((F1*J1-G1*I1)>0,CHIDIST(P1,1),\"     - \"))","v":""},{"$f":"IF((F1+G1+I1+J1)=0,\"\",IF((F1*J1-G1*I1)<=0,\"       - \",IF(Q1<0.01,\" 危険率1%未満で有意\",(IF(Q1<0.05,\" 危険率5%未満で有意\",\"      －\")))))","v":""}]
[]
[]
[]
[]
[null,"喫食調査入力表（喫食）"]
[" ",null,null,null,null,null,null,null,null,null,null,null,null,null,null,null,"処理 =","2025-07-28T00:18:25"]
[null,null,"No.","種別","食品","有症者",null,null,"健康者",null,null,"合 計","発症率",null,"(ad-bc)",null,"　カイの２乗検定　　"]
[null,null,null,"   メ ニ ュ ー",null,"食べた","食べない","小計","食べた","食べない","小計",null,"食べた","食べない","  >,=,<","χ2値","危険率","判  定"]
[]
[null,null,1,"天ぷら","いも",26,1,{"$f":"IF(AND(F11=\"\",G11=\"\"),\"\",F11+G11)","v":27},5,1,{"$f":"IF(AND(I11=\"\",J11=\"\"),\"\",I11+J11)","v":6},{"$f":"IF(AND(F11=\"\",G11=\"\",I11=\"\",J11=\"\"),\"\",(+F11+G11+I11+J11))","v":33},{"$f":"IF(L11=\"\",\"\",IF((F11+I11)=0,\"     - \",+F11/(F11+I11)))","v":0.83870967741935487},{"$f":"IF(L11=\"\",\"\",IF((G11+J11)=0,\"     - \",+G11/(G11+J11)))","v":0.5},{"$f":"IF(AND(F11=0,G11=0,I11=0,J11=0),\"\",IF((F11*J11-G11*I11)>0,\"　  > \",IF((F11*J11-G11*I11)<0,\"　  < \",\"    = \")))","v":"　  > "},{"$f":"IF(F11+G11+I11+J11=0,\"\",IF((F11*J11-G11*I11)<=0,\"     - \",IF(AND(F11>10,G11>10,I11>10,J11>10),((F11*J11-G11*I11)^2*(F11+G11+I11+J11)/((F11+I11)*(G11+J11)*(F11+G11)*(I11+J11))),((F11*J11-G11*I11)-(F11+G11+I11+J11)/2)^2*(F11+G11+I11+J11)/((F11+I11)*(G11+J11)*(F11+G11)*(I11+J11)))))","v":6.6532258064516125E-2},{"$f":"IF(AND(F11=0,G11=0,I11=0,J11=0),\"\",IF((F11*J11-G11*I11)>0,CHIDIST(P11,1),\"     - \"))","v":0.79645438876566299},{"$f":"IF((F11+G11+I11+J11)=0,\"\",IF((F11*J11-G11*I11)<=0,\"       - \",IF(Q11<0.01,\" 危険率1%未満で有意\",(IF(Q11<0.05,\" 危険率5%未満で有意\",\"      －\")))))","v":"      －"}]
[null,null,2,"天ぷら","さかな",25,3,{"$f":"IF(AND(F12=\"\",G12=\"\"),\"\",F12+G12)","v":28},8,1,{"$f":"IF(AND(I12=\"\",J12=\"\"),\"\",I12+J12)","v":9},{"$f":"IF(AND(F12=\"\",G12=\"\",I12=\"\",J12=\"\"),\"\",(+F12+G12+I12+J12))","v":37},{"$f":"IF(L12=\"\",\"\",IF((F12+I12)=0,\"     - \",+F12/(F12+I12)))","v":0.75757575757575757},{"$f":"IF(L12=\"\",\"\",IF((G12+J12)=0,\"     - \",+G12/(G12+J12)))","v":0.75},{"$f":"IF(AND(F12=0,G12=0,I12=0,J12=0),\"\",IF((F12*J12-G12*I12)>0,\"　  > \",IF((F12*J12-G12*I12)<0,\"　  < \",\"    = \")))","v":"　  > "},{"$f":"IF(F12+G12+I12+J12=0,\"\",IF((F12*J12-G12*I12)<=0,\"     - \",IF(AND(F12>10,G12>10,I12>10,J12>10),((F12*J12-G12*I12)^2*(F12+G12+I12+J12)/((F12+I12)*(G12+J12)*(F12+G12)*(I12+J12))),((F12*J12-G12*I12)-(F12+G12+I12+J12)/2)^2*(F12+G12+I12+J12)/((F12+I12)*(G12+J12)*(F12+G12)*(I12+J12)))))","v":0.34064604377104379},{"$f":"IF(AND(F12=0,G12=0,I12=0,J12=0),\"\",IF((F12*J12-G12*I12)>0,CHIDIST(P12,1),\"     - \"))","v":0.55945655039980458},{"$f":"IF((F12+G12+I12+J12)=0,\"\",IF((F12*J12-G12*I12)<=0,\"       - \",IF(Q12<0.01,\" 危険率1%未満で有意\",(IF(Q12<0.05,\" 危険率5%未満で有意\",\"      －\")))))","v":"      －"}]
[null,null,3,"天ぷら","イカ",27,1,28,6,3,9,37,0.81818181818181823,0.25,"　  > ",3.5507831289081291,5.951735397356181E-2,"      －"]
[null,null,4,"天ぷら","とりにく",23,5,28,7,2,9,37,0.76666666666666672,0.7142857142857143,"　  > ",3.9328231292517009E-2,0.84279981559761963,"      －"]
[null,null,5,"天ぷら","タコ",25,3,28,6,3,9,37,0.80645161290322576,0.5,"　  > ",1.1700642174432496,0.2793880459482263,"      －"]
[null,null,6,"天ぷら","さといも",23,5,28,7,2,9,37,0.76666666666666672,0.7142857142857143,"　  > ",3.9328231292517009E-2,0.84279981559761963,"      －"]
[null,null,7,"天ぷら","やまいも",24,4,28,4,2,6,34,0.8571428571428571,0.66666666666666663,"　  > ",0.27104591836734693,0.60263102291374548,"      －"]
[1,2,8,"天ぷら","塩",27,1,28,6,3,9,37,0.81818181818181823,0.25,"　  > ",3.5507831289081291,5.951735397356181E-2,"      －"]
[null,null,9,"天ぷら","ナス",25,3,28,7,2,9,37,0.78125,0.6,"　  > ",0.10117187499999999,0.75042784476635194,"      －"]
[null,null,10,"天ぷら","かぼちゃ",24,4,28,3,3,6,34,0.88888888888888884,0.5714285714285714,"　  > ",1.9799067775258252,0.15940022791155467,"      －"]
[null,null,11,"造り","サーモン",22,6,28,3,3,6,34,0.88,0.66666666666666663,"　  > ",0.86439153439153438,0.35251266292483219,"      －"]
[null,null,12,"既製品","卵焼き",18,9,27,2,4,6,33,0.9,0.69230769230769229,"　  > ",1.1017628205128205,0.29387956415950217,"      －"]
[null,null,13,"酢の物","タコ",24,3,27,1,4,5,32,0.96,0.42857142857142855,"　  > ",8.0308148148148142,4.5988146693836749E-3," 危険率1%未満で有意"]
[null,null,14,"造り","イカ",11,2,13,0,45865.91778935185,45865.91778935185,45878.91778935185,1,4.3603461774414716E-5,"　  > ",35369.186025049145,0," 危険率1%未満で有意"]
[null,null,15,"酢の物","わかめ",16,12,28,0,5,5,33,1,0.70588235294117652,"　  > ",3.4943342962184873,6.157916135760582E-2,"      －"]
[null,null,16,"酢の物","きゅうり",20,8,28,0,5,5,33,1,0.61538461538461542,"　  > ",6.3209958791208791,1.1931660004189255E-2," 危険率5%未満で有意"]
[null,null,17,"たきもの","大根",19,9,28,0,5,5,33,1,0.6428571428571429,"　  > ",5.4606404403866806,1.9449516828338016E-2," 危険率5%未満で有意"]
[null,null,18,"たきもの","人参",28,0,28,5,0,5,33,0.84848484848484851,"     - ","    = ","     - ","     - ","       - "]
[null,null,19,"たきもの","スナップエンドウ",15,13,28,0,6,6,34,1,0.68421052631578949,"　  > ",3.784168755221387,5.1739603581280366E-2,"      －"]
[null,null,20,"たきもの","タケノコ",18,10,28,0,6,6,34,1,0.625,"　  > ",5.8191550925925926,1.5852558171248012E-2," 危険率5%未満で有意"]
[null,null,21,"たきもの","シイタケ",8,10,18,0,6,6,24,1,0.625,"　  > ",2.25,0.13361440253771617,"      －"]
[null,null,22,"ちらし寿司","おぼろ",17,11,28,0,6,6,34,1,0.6470588235294118,"　  > ",5.0595238095238093,2.4490966408266764E-2," 危険率5%未満で有意"]
[null,null,23,"ちらし寿司","マメ",17,11,28,0,6,6,34,1,0.6470588235294118,"　  > ",5.0595238095238093,2.4490966408266764E-2," 危険率5%未満で有意"]
[null,null,24,"ちらし寿司","うなぎ",16,12,28,2,4,6,34,0.88888888888888884,0.75,"　  > ",0.37173445767195767,0.54206035478459236,"      －"]
[null,null,25,"ちらし寿司","うなぎ",15,13,28,1,4,5,33,0.9375,0.76470588235294112,"　  > ",0.80615152310924365,0.36926050580395275,"      －"]
[null,null,26,"ちらし寿司","ノリ",0,0,0,0,0,0,0,"     - ","     - ","","","",""]
[null,null,27,"ちらし寿司","ノリ",0,0,0,0,0,0,0,"     - ","     - ","","","",""]
[null,null,28,"ちらし寿司","錦糸卵",null,null,"",null,null,"","","","","","","",""]
[null,null,29,"ちらし寿司","錦糸卵",null,null,"",null,null,"","","","","","","",""]
[null,null,30,"ちらし寿司","しょうが",0,0,0,2,1,3,3,0,0,"    = ","     - ","     - ","       - "]
[null,null,31,"ちらし寿司","しょうが",0,0,0,2,1,3,3,0,0,"    = ","     - ","     - ","       - "]
[null,null,32,"弁当","焼魚",0,0,0,3,0,3,3,0,"     - ","    = ","     - ","     - ","       - "]
[null,null,33,"弁当","焼魚",0,0,0,0,0,0,0,"     - ","     - ","","","",""]
[null,null,34,"デザート","オレンジ",0,0,0,0,0,0,0,"     - ","     - ","","","",""]
[null,null,35,"デザート","イチゴ",null,null,"",null,null,"","","","","","","",""]
[null,null,36,"デザート","メロン",null,null,"",null,null,"","","","","","","",""]
[null,null,37,"31セット","コーヒー",null,null,"",null,null,"","","","","","","",""]
[null,null,38,"31セット","茶碗蒸し",null,null,"",null,null,"","","","","","","",""]
[null,null,39,"31セット","フルーツ",null,null,"",null,null,"","","","","","","",""]
[null,null,40,"31ちらし寿司","イカ",null,null,"",null,null,"","","","","","","",""]
[null,null,41,"31ちらし寿司","えび",null,null,"",null,null,"","","","","","","",""]
[null,null,42,"31ちらし寿司","カンパチ",0,0,0,0,0,0,0,"     - ","     - ","","","",""]
[null,null,43,"31ちらし寿司","サーモン",null,null,"",null,null,"","","","","","","",""]
[null,null,44,"31ちらし寿司","タコ",null,null,"",null,null,"","","","","","","",""]
[null,null,45,"31ちらし寿司","まぐろ",null,null,"",null,null,"","","","","","","",""]
[null,null,46,"31鉄火セット","うなぎ",null,null,"",null,null,"","","","","","","",""]
[null,null,47,"31鉄火セット","鉄火１本",null,null,"",null,null,"","","","","","","",""]
[null,null,48,"31握り","タイ",7,6,13,1,3,4,17,0.875,0.66666666666666663,"　  > ",0.19184027777777779,0.66138936365338397,"      －"]
[null,null,49,"ちらし寿司","いくら",8,5,13,3,1,4,17,0.72727272727272729,0.83333333333333337,"　  < ","     - ","     - ","       - "]
[null,null,50,"ちらし寿司","玉子",6,7,13,2,2,4,17,0.75,0.77777777777777779,"　  < ","     - ","     - ","       - "]
[null,null,51,"にぎりセット","お茶",6,7,13,3,1,4,17,0.66666666666666663,0.875,"　  < ","     - ","     - ","       - "]
[null,null,null,null,null,null,null,"",null,null,"","","","","","","",""]
[null,null,null,null,null,null,null,"",null,null,"","","","","","","",""]
[null,null,null,null,null,null,null,"",null,null,"","","","","","","",""]
[null,null,null,null,null,null,null,"",null,null,"","","","","","","",""]
[null,null,null,null,null,null,null,"",null,null,"","","","","","","",""]
[null,null,null,null,null,null,null,"",null,null,"","","","","","","",""]
[null,null,null,null,null,null,null,"",null,null,"","","","","","","",""]
[null,null,null,null,null,null,null,"",null,null,"","","","","","","",""]
[null,null,null,null,null,null,null,"",null,null,"","","","","","","",""]
[null,null,null,null,null,null,null,"",null,null,"","","","","","","",""]
[null,null,null,null,null,null,null,"",null,null,"","","","","","","",""]
[null,null,null,null,null,null,null,"",null,null,"","","","","","","",""]
[null,null,null,null,null,null,null,"",null,null,"","","","","","","",""]
[null,null,null,null,null,null,null,"",null,null,"","","","","","","",""]
[null,null,null,null,null,null,null,{"$f":"IF(AND(F76=\"\",G76=\"\"),\"\",F76+G76)","v":""},null,null,{"$f":"IF(AND(I76=\"\",J76=\"\"),\"\",I76+J76)","v":""},{"$f":"IF(AND(F76=\"\",G76=\"\",I76=\"\",J76=\"\"),\"\",(+F76+G76+I76+J76))","v":""},{"$f":"IF(L76=\"\",\"\",IF((F76+I76)=0,\"     - \",+F76/(F76+I76)))","v":""},{"$f":"IF(L76=\"\",\"\",IF((G76+J76)=0,\"     - \",+G76/(G76+J76)))","v":""},{"$f":"IF(AND(F76=0,G76=0,I76=0,J76=0),\"\",IF((F76*J76-G76*I76)>0,\"　  > \",IF((F76*J76-G76*I76)<0,\"　  < \",\"    = \")))","v":""},{"$f":"IF(F76+G76+I76+J76=0,\"\",IF((F76*J76-G76*I76)<=0,\"     - \",IF(AND(F76>10,G76>10,I76>10,J76>10),((F76*J76-G76*I76)^2*(F76+G76+I76+J76)/((F76+I76)*(G76+J76)*(F76+G76)*(I76+J76))),((F76*J76-G76*I76)-(F76+G76+I76+J76)/2)^2*(F76+G76+I76+J76)/((F76+I76)*(G76+J76)*(F76+G76)*(I76+J76)))))","v":""},{"$f":"IF(AND(F76=0,G76=0,I76=0,J76=0),\"\",IF((F76*J76-G76*I76)>0,CHIDIST(P76,1),\"     - \"))","v":""},{"$f":"IF((F76+G76+I76+J76)=0,\"\",IF((F76*J76-G76*I76)<=0,\"       - \",IF(Q76<0.01,\" 危険率1%未満で有意\",(IF(Q76<0.05,\" 危険率5%未満で有意\",\"      －\")))))","v":""}]
[null,null,null,null,null,null,null,"",null,null,"","","","","","","",""]
[null,null,null,null,null,null,null,"",null,null,"","","","","","","",""]
[null,null,null,null,null,null,null,"",null,null,"","","","","","","",""]
[null,null,null,null,null,null,null,"",null,null,"","","","","","","",""]
[null,null,null,null,null,null,null,"",null,null,"","","","","","","",""]
[null,null,null,null,null,null,null,"",null,null,"","","","","","","",""]
[null,null,null,null,null,null,null,"",null,null,"","","","","","","",""]
[null,null,null,null,null,null,null,"",null,null,"","","","","","","",""]
[null,null,null,null,null,null,null,"",null,null,"","","","","","","",""]
[null,null,null,null,null,null,null,"",null,null,"","","","","","","",""]
[null,null,null,null,null,null,null,"",null,null,"","","","","","","",""]
[null,null,null,null,null,null,null,"",null,null,"","","","","","","",""]
[null,null,null,null,null,null,null,"",null,null,"","","","","","","",""]
[null,null,null,null,null,null,null,"",null,null,"","","","","","","",""]
[null,null,null,null,null,null,null,"",null,null,"","","","","","","",""]
[null,null,null,null,null,null,null,"",null,null,"","","","","","","",""]
[null,null,null,null,null,null,null,"",null,null,"","","","","","","",""]
[null,null,null,null,null,null,null,"",null,null,"","","","","","","",""]
[null,null,null,null,null,null,null,"",null,null,"","","","","","","",""]
[null,null,null,null,null,null,null,"",null,null,"","","","","","","",""]
[null,null,null,null,null,null,null,"",null,null,"","","","","","","",""]
[null,null,null,null,null,null,null,"",null,null,"","","","","","","",""]
[null,null,null,null,null,null,null,"",null,null,"","","","","","","",""]
[null,null,null,null,null,null,null,"",null,null,"","","","","","","",""]
[null,null,null,null,null,null,null,"",null,null,"","","","","","","",""]
[null,null,null,null,null,null,null,"",null,null,"","","","","","","",""]
[null,null,null,null,null,null,null,"",null,null,"","","","","","","",""]
[null,null,null,null,null,null,null,"",null,null,"","","","","","","",""]
[null,null,null,null,null,null,null,"",null,null,"","","","","","","",""]
[null,null,null,null,null,null,null,"",null,null,"","","","","","","",""]
[null,null,null,null,null,null,null,"",null,null,"","","","","","","",""]
[null,null,null,null,null,null,null,"",null,null,"","","","","","","",""]
[null,null,null,null,null,null,null,"",null,null,"","","","","","","",""]
[null,null,null,null,null,null,null,"",null,null,"","","","","","","",""]
[null,null,null,null,null,null,null,"",null,null,"","","","","","","",""]
[null,null,null,null,null,null,null,"",null,null,"","","","","","","",""]
[null,null,null,null,null,null,null,"",null,null,"","","","","","","",""]
[null,null,null,null,null,null,null,"",null,null,"","","","","","","",""]
[null,null,null,null,null,null,null,"",null,null,"","","","","","","",""]
[null,null,null,null,null,null,null,"",null,null,"","","","","","","",""]
[null,null,null,null,null,null,null,"",null,null,"","","","","","","",""]
[null,null,null,null,null,null,null,"",null,null,"","","","","","","",""]
[null,null,null,null,null,null,null,"",null,null,"","","","","","","",""]
[null,null,null,null,null,null,null,"",null,null,"","","","","","","",""]
[null,null,null,null,null,null,null,"",null,null,"","","","","","","",""]
[null,null,null,null,null,null,null,"",null,null,"","","","","","","",""]
[null,null,null,null,null,null,null,"",null,null,"","","","","","","",""]
[null,null,null,null,null,null,null,"",null,null,"","","","","","","",""]
[null,null,null,null,null,null,null,"",null,null,"","","","","","","",""]
[null,null,null,null,null,null,null,"",null,null,"","","","","","","",""]
[null,null,null,null,null,null,null,"",null,null,"","","","","","","",""]
[null,null,null,null,null,null,null,"",null,null,"","","","","","","",""]
[null,null,null,null,null,null,null,"",null,null,"","","","","","","",""]
[null,null,null,null,null,null,null,"",null,null,"","","","","","","",""]
[null,null,null,null,null,null,null,"",null,null,"","","","","","","",""]
[null,null,null,null,null,null,null,"",null,null,"","","","","","","",""]
[null,null,null,null,null,null,null,"",null,null,"","","","","","","",""]
[null,null,null,null,null,null,null,"",null,null,"","","","","","","",""]
[null,null,null,null,null,null,null,"",null,null,"","","","","","","",""]
[null,null,null,null,null,null,null,"",null,null,"","","","","","","",""]
[null,null,null,null,null,null,null,"",null,null,"","","","","","","",""]
[null,null,null,null,null,null,null,"",null,null,"","","","","","","",""]
[null,null,null,null,null,null,null,"",null,null,"","","","","","","",""]
[null,null,null,null,null,null,null,{"$f":"IF(AND(F140=\"\",G140=\"\"),\"\",F140+G140)","v":""},null,null,{"$f":"IF(AND(I140=\"\",J140=\"\"),\"\",I140+J140)","v":""},{"$f":"IF(AND(F140=\"\",G140=\"\",I140=\"\",J140=\"\"),\"\",(+F140+G140+I140+J140))","v":""},{"$f":"IF(L140=\"\",\"\",IF((F140+I140)=0,\"     - \",+F140/(F140+I140)))","v":""},{"$f":"IF(L140=\"\",\"\",IF((G140+J140)=0,\"     - \",+G140/(G140+J140)))","v":""},{"$f":"IF(AND(F140=0,G140=0,I140=0,J140=0),\"\",IF((F140*J140-G140*I140)>0,\"　  > \",IF((F140*J140-G140*I140)<0,\"　  < \",\"    = \")))","v":""},{"$f":"IF(F140+G140+I140+J140=0,\"\",IF((F140*J140-G140*I140)<=0,\"     - \",IF(AND(F140>10,G140>10,I140>10,J140>10),((F140*J140-G140*I140)^2*(F140+G140+I140+J140)/((F140+I140)*(G140+J140)*(F140+G140)*(I140+J140))),((F140*J140-G140*I140)-(F140+G140+I140+J140)/2)^2*(F140+G140+I140+J140)/((F140+I140)*(G140+J140)*(F140+G140)*(I140+J140)))))","v":""},{"$f":"IF(AND(F140=0,G140=0,I140=0,J140=0),\"\",IF((F140*J140-G140*I140)>0,CHIDIST(P140,1),\"     - \"))","v":""},{"$f":"IF((F140+G140+I140+J140)=0,\"\",IF((F140*J140-G140*I140)<=0,\"       - \",IF(Q140<0.01,\" 危険率1%未満で有意\",(IF(Q140<0.05,\" 危険率5%未満で有意\",\"      －\")))))","v":""}]
[null,null,null,null,null,null,null,"",null,null,"","","","","","","",""]
[null,null,null,null,null,null,null,"",null,null,"","","","","","","",""]
[null,null,null,null,null,null,null,"",null,null,"","","","","","","",""]
[null,null,null,null,null,null,null,"",null,null,"","","","","","","",""]
[null,null,null,null,null,null,null,"",null,null,"","","","","","","",""]
[null,null,null,null,null,null,null,"",null,null,"","","","","","","",""]
[null,null,null,null,null,null,null,"",null,null,"","","","","","","",""]
[null,null,null,null,null,null,null,"",null,null,"","","","","","","",""]
[null,null,null,null,null,null,null,"",null,null,"","","","","","","",""]
[null,null,null,null,null,null,null,"",null,null,"","","","","","","",""]
[null,null,null,null,null,null,null,"",null,null,"","","","","","","",""]
[null,null,null,null,null,null,null,"",null,null,"","","","","","","",""]
[null,null,null,null,null,null,null,"",null,null,"","","","","","","",""]
[null,null,null,null,null,null,null,"",null,null,"","","","","","","",""]
[null,null,null,null,null,null,null,"",null,null,"","","","","","","",""]
[null,null,null,null,null,null,null,"",null,null,"","","","","","","",""]
[null,null,null,null,null,null,null,"",null,null,"","","","","","","",""]
[null,null,null,null,null,null,null,"",null,null,"","","","","","","",""]
[null,null,null,null,null,null,null,"",null,null,"","","","","","","",""]
[null,null,null,null,null,null,null,"",null,null,"","","","","","","",""]
[null,null,null,null,null,null,null,"",null,null,"","","","","","","",""]
[null,null,null,null,null,null,null,"",null,null,"","","","","","","",""]
[null,null,null,null,null,null,null,"",null,null,"","","","","","","",""]
[null,null,null,null,null,null,null,"",null,null,"","","","","","","",""]
[null,null,null,null,null,null,null,"",null,null,"","","","","","","",""]
[null,null,null,null,null,null,null,"",null,null,"","","","","","","",""]
[null,null,null,null,null,null,null,"",null,null,"","","","","","","",""]
[null,null,null,null,null,null,null,"",null,null,"","","","","","","",""]
[null,null,null,null,null,null,null,"",null,null,"","","","","","","",""]
[null,null,null,null,null,null,null,"",null,null,"","","","","","","",""]
[null,null,null,null,null,null,null,"",null,null,"","","","","","","",""]
[null,null,null,null,null,null,null,"",null,null,"","","","","","","",""]
[null,null,null,null,null,null,null,"",null,null,"","","","","","","",""]
[null,null,null,null,null,null,null,"",null,null,"","","","","","","",""]
[null,null,null,null,null,null,null,"",null,null,"","","","","","","",""]
[null,null,null,null,null,null,null,"",null,null,"","","","","","","",""]
[null,null,null,null,null,null,null,"",null,null,"","","","","","","",""]
[null,null,null,null,null,null,null,"",null,null,"","","","","","","",""]
[null,null,null,null,null,null,null,"",null,null,"","","","","","","",""]
[null,null,null,null,null,null,null,"",null,null,"","","","","","","",""]
[null,null,null,null,null,null,null,"",null,null,"","","","","","","",""]
[null,null,null,null,null,null,null,"",null,null,"","","","","","","",""]
[null,null,null,null,null,null,null,"",null,null,"","","","","","","",""]
[null,null,null,null,null,null,null,"",null,null,"","","","","","","",""]
[null,null,null,null,null,null,null,"",null,null,"","","","","","","",""]
[null,null,null,null,null,null,null,"",null,null,"","","","","","","",""]
[null,null,null,null,null,null,null,"",null,null,"","","","","","","",""]
[null,null,null,null,null,null,null,"",null,null,"","","","","","","",""]
[null,null,null,null,null,null,null,"",null,null,"","","","","","","",""]
[null,null,null,null,null,null,null,"",null,null,"","","","","","","",""]
[null,null,null,null,null,null,null,"",null,null,"","","","","","","",""]
[null,null,null,null,null,null,null,"",null,null,"","","","","","","",""]
[null,null,null,null,null,null,null,"",null,null,"","","","","","","",""]
[null,null,null,null,null,null,null,"",null,null,"","","","","","","",""]
[null,null,null,null,null,null,null,"",null,null,"","","","","","","",""]
[null,null,null,null,null,null,null,"",null,null,"","","","","","","",""]
[null,null,null,null,null,null,null,"",null,null,"","","","","","","",""]
[null,null,null,null,null,null,null,"",null,null,"","","","","","","",""]
[null,null,null,null,null,null,null,"",null,null,"","","","","","","",""]
[null,null,null,null,null,null,null,"",null,null,"","","","","","","",""]
[null,null,null,null,null,null,null,"",null,null,"","","","","","","",""]
[null,null,null,null,null,null,null,"",null,null,"","","","","","","",""]
[null,null,null,null,null,null,null,"",null,null,"","","","","","","",""]
[null,null,null,null,null,null,null,{"$f":"IF(AND(F204=\"\",G204=\"\"),\"\",F204+G204)","v":""},null,null,{"$f":"IF(AND(I204=\"\",J204=\"\"),\"\",I204+J204)","v":""},{"$f":"IF(AND(F204=\"\",G204=\"\",I204=\"\",J204=\"\"),\"\",(+F204+G204+I204+J204))","v":""},{"$f":"IF(L204=\"\",\"\",IF((F204+I204)=0,\"     - \",+F204/(F204+I204)))","v":""},{"$f":"IF(L204=\"\",\"\",IF((G204+J204)=0,\"     - \",+G204/(G204+J204)))","v":""},{"$f":"IF(AND(F204=0,G204=0,I204=0,J204=0),\"\",IF((F204*J204-G204*I204)>0,\"　  > \",IF((F204*J204-G204*I204)<0,\"　  < \",\"    = \")))","v":""},{"$f":"IF(F204+G204+I204+J204=0,\"\",IF((F204*J204-G204*I204)<=0,\"     - \",IF(AND(F204>10,G204>10,I204>10,J204>10),((F204*J204-G204*I204)^2*(F204+G204+I204+J204)/((F204+I204)*(G204+J204)*(F204+G204)*(I204+J204))),((F204*J204-G204*I204)-(F204+G204+I204+J204)/2)^2*(F204+G204+I204+J204)/((F204+I204)*(G204+J204)*(F204+G204)*(I204+J204)))))","v":""},{"$f":"IF(AND(F204=0,G204=0,I204=0,J204=0),\"\",IF((F204*J204-G204*I204)>0,CHIDIST(P204,1),\"     - \"))","v":""},{"$f":"IF((F204+G204+I204+J204)=0,\"\",IF((F204*J204-G204*I204)<=0,\"       - \",IF(Q204<0.01,\" 危険率1%未満で有意\",(IF(Q204<0.05,\" 危険率5%未満で有意\",\"      －\")))))","v":""}]
[null,null,null,null,null,null,null,"",null,null,"","","","","","","",""]
[null,null,null,null,null,null,null,"",null,null,"","","","","","","",""]
[null,null,null,null,null,null,null,"",null,null,"","","","","","","",""]
[null,null,null,null,null,null,null,"",null,null,"","","","","","","",""]
[null,null,null,null,null,null,null,"",null,null,"","","","","","","",""]
[null,null,null,null,null,null,null,"",null,null,"","","","","","","",""]
[null,null,null,null,null,null,null,"",null,null,"","","","","","","",""]
[null,null,null,null,null,null,null,"",null,null,"","","","","","","",""]
[null,null,null,null,null,null,null,"",null,null,"","","","","","","",""]
[null,null,null,null,null,null,null,"",null,null,"","","","","","","",""]
[null,null,null,null,null,null,null,"",null,null,"","","","","","","",""]
[null,null,null,null,null,null,null,"",null,null,"","","","","","","",""]
[null,null,null,null,null,null,null,"",null,null,"","","","","","","",""]
[null,null,null,null,null,null,null,"",null,null,"","","","","","","",""]
[null,null,null,null,null,null,null,"",null,null,"","","","","","","",""]
[null,null,null,null,null,null,null,"",null,null,"","","","","","","",""]
[null,null,null,null,null,null,null,"",null,null,"","","","","","","",""]
[null,null,null,null,null,null,null,"",null,null,"","","","","","","",""]
[null,null,null,null,null,null,null,"",null,null,"","","","","","","",""]
[null,null,null,null,null,null,null,"",null,null,"","","","","","","",""]
[null,null,null,null,null,null,null,"",null,null,"","","","","","","",""]
[null,null,null,null,null,null,null,"",null,null,"","","","","","","",""]
[null,null,null,null,null,null,null,"",null,null,"","","","","","","",""]
[null,null,null,null,null,null,null,"",null,null,"","","","","","","",""]
[null,null,null,null,null,null,null,"",null,null,"","","","","","","",""]
[null,null,null,null,null,null,null,"",null,null,"","","","","","","",""]
[null,null,null,null,null,null,null,"",null,null,"","","","","","","",""]
[null,null,null,null,null,null,null,"",null,null,"","","","","","","",""]
[null,null,null,null,null,null,null,"",null,null,"","","","","","","",""]
[null,null,null,null,null,null,null,"",null,null,"","","","","","","",""]
[null,null,null,null,null,null,null,"",null,null,"","","","","","","",""]
[null,null,null,null,null,null,null,"",null,null,"","","","","","","",""]
[null,null,null,null,null,null,null,"",null,null,"","","","","","","",""]
[null,null,null,null,null,null,null,"",null,null,"","","","","","","",""]
[null,null,null,null,null,null,null,"",null,null,"","","","","","","",""]
[null,null,null,null,null,null,null,"",null,null,"","","","","","","",""]
[null,null,null,null,null,null,null,"",null,null,"","","","","","","",""]
[null,null,null,null,null,null,null,"",null,null,"","","","","","","",""]
[null,null,null,null,null,null,null,"",null,null,"","","","","","","",""]
[null,null,null,null,null,null,null,"",null,null,"","","","","","","",""]
[null,null,null,null,null,null,null,"",null,null,"","","","","","","",""]
[null,null,null,null,null,null,null,"",null,null,"","","","","","","",""]
[null,null,null,null,null,null,null,"",null,null,"","","","","","","",""]
[null,null,null,null,null,null,null,"",null,null,"","","","","","","",""]
[null,null,null,null,null,null,null,"",null,null,"","","","","","","",""]
[null,null,null,null,null,null,null,"",null,null,"","","","","","","",""]
[null,null,null,null,null,null,null,"",null,null,"","","","","","","",""]
[null,null,null,null,null,null,null,"",null,null,"","","","","","","",""]
[null,null,null,null,null,null,null,"",null,null,"","","","","","","",""]
[null,null,null,null,null,null,null,"",null,null,"","","","","","","",""]
[null,null,null,null,null,null,null,"",null,null,"","","","","","","",""]
[null,null,null,null,null,null,null,"",null,null,"","","","","","","",""]
[null,null,null,null,null,null,null,"",null,null,"","","","","","","",""]
[null,null,null,null,null,null,null,"",null,null,"","","","","","","",""]
[null,null,null,null,null,null,null,"",null,null,"","","","","","","",""]
[null,null,null,null,null,null,null,"",null,null,"","","","","","","",""]
[null,null,null,null,null,null,null,"",null,null,"","","","","","","",""]
[null,null,null,null,null,null,null,"",null,null,"","","","","","","",""]
[null,null,null,null,null,null,null,"",null,null,"","","","","","","",""]
[null,null,null,null,null,null,null,"",null,null,"","","","","","","",""]
[null,null,null,null,null,null,null,"",null,null,"","","","","","","",""]
[null,null,null,null,null,null,null,"",null,null,"","","","","","","",""]
[null,null,null,null,null,null,null,"",null,null,"","","","","","","",""]
[null,null,null,null,null,null,null,{"$f":"IF(AND(F268=\"\",G268=\"\"),\"\",F268+G268)","v":""},null,null,{"$f":"IF(AND(I268=\"\",J268=\"\"),\"\",I268+J268)","v":""},{"$f":"IF(AND(F268=\"\",G268=\"\",I268=\"\",J268=\"\"),\"\",(+F268+G268+I268+J268))","v":""},{"$f":"IF(L268=\"\",\"\",IF((F268+I268)=0,\"     - \",+F268/(F268+I268)))","v":""},{"$f":"IF(L268=\"\",\"\",IF((G268+J268)=0,\"     - \",+G268/(G268+J268)))","v":""},{"$f":"IF(AND(F268=0,G268=0,I268=0,J268=0),\"\",IF((F268*J268-G268*I268)>0,\"　  > \",IF((F268*J268-G268*I268)<0,\"　  < \",\"    = \")))","v":""},{"$f":"IF(F268+G268+I268+J268=0,\"\",IF((F268*J268-G268*I268)<=0,\"     - \",IF(AND(F268>10,G268>10,I268>10,J268>10),((F268*J268-G268*I268)^2*(F268+G268+I268+J268)/((F268+I268)*(G268+J268)*(F268+G268)*(I268+J268))),((F268*J268-G268*I268)-(F268+G268+I268+J268)/2)^2*(F268+G268+I268+J268)/((F268+I268)*(G268+J268)*(F268+G268)*(I268+J268)))))","v":""},{"$f":"IF(AND(F268=0,G268=0,I268=0,J268=0),\"\",IF((F268*J268-G268*I268)>0,CHIDIST(P268,1),\"     - \"))","v":""},{"$f":"IF((F268+G268+I268+J268)=0,\"\",IF((F268*J268-G268*I268)<=0,\"       - \",IF(Q268<0.01,\" 危険率1%未満で有意\",(IF(Q268<0.05,\" 危険率5%未満で有意\",\"      －\")))))","v":""}]
[null,null,null,null,null,null,null,"",null,null,"","","","","","","",""]
[null,null,null,null,null,null,null,"",null,null,"","","","","","","",""]
[null,null,null,null,null,null,null,"",null,null,"","","","","","","",""]
[null,null,null,null,null,null,null,"",null,null,"","","","","","","",""]
[null,null,null,null,null,null,null,"",null,null,"","","","","","","",""]
[null,null,null,null,null,null,null,"",null,null,"","","","","","","",""]
[null,null,null,null,null,null,null,"",null,null,"","","","","","","",""]
[null,null,null,null,null,null,null,"",null,null,"","","","","","","",""]
[null,null,null,null,null,null,null,"",null,null,"","","","","","","",""]
[null,null,null,null,null,null,null,"",null,null,"","","","","","","",""]
[null,null,null,null,null,null,null,"",null,null,"","","","","","","",""]
[null,null,null,null,null,null,null,"",null,null,"","","","","","","",""]
[null,null,null,null,null,null,null,"",null,null,"","","","","","","",""]
[null,null,null,null,null,null,null,"",null,null,"","","","","","","",""]
[null,null,null,null,null,null,null,"",null,null,"","","","","","","",""]
[null,null,null,null,null,null,null,"",null,null,"","","","","","","",""]
[null,null,null,null,null,null,null,"",null,null,"","","","","","","",""]
[null,null,null,null,null,null,null,"",null,null,"","","","","","","",""]
[null,null,null,null,null,null,null,"",null,null,"","","","","","","",""]
[null,null,null,null,null,null,null,"",null,null,"","","","","","","",""]
[null,null,null,null,null,null,null,"",null,null,"","","","","","","",""]
[null,null,null,null,null,null,null,"",null,null,"","","","","","","",""]
[null,null,null,null,null,null,null,"",null,null,"","","","","","","",""]
[null,null,null,null,null,null,null,"",null,null,"","","","","","","",""]
[null,null,null,null,null,null,null,"",null,null,"","","","","","","",""]
[null,null,null,null,null,null,null,"",null,null,"","","","","","","",""]
[null,null,null,null,null,null,null,"",null,null,"","","","","","","",""]
[null,null,null,null,null,null,null,"",null,null,"","","","","","","",""]
[null,null,null,null,null,null,null,"",null,null,"","","","","","","",""]
[null,null,null,null,null,null,null,"",null,null,"","","","","","","",""]
[null,null,null,null,null,null,null,"",null,null,"","","","","","","",""]
[null,null,null,null,null,null,null,"",null,null,"","","","","","","",""]
[null,null,null,null,null,null,null,"",null,null,"","","","","","","",""]
[null,null,null,null,null,null,null,"",null,null,"","","","","","","",""]
[null,null,null,null,null,null,null,"",null,null,"","","","","","","",""]
[null,null,null,null,null,null,null,"",null,null,"","","","","","","",""]
[null,null,null,null,null,null,null,"",null,null,"","","","","","","",""]
[null,null,null,null,null,null,null,"",null,null,"","","","","","","",""]
[null,null,null,null,null,null,null,"",null,null,"","","","","","","",""]
[null,null,null,null,null,null,null,"",null,null,"","","","","","","",""]
[null,null,null,null,null,null,null,"",null,null,"","","","","","","",""]
[null,null,null,null,null,null,null,"",null,null,"","","","","","","",""]
[null,null,null,null,null,null,null,"",null,null,"","","","","","","",""]
[null,null,null,null,null,null,null,"",null,null,"","","","","","","",""]
[null,null,null,null,null,null,null,"",null,null,"","","","","","","",""]
[null,null,null,null,null,null,null,"",null,null,"","","","","","","",""]
[null,null,null,null,null,null,null,"",null,null,"","","","","","","",""]
[null,null,null,null,null,null,null,"",null,null,"","","","","","","",""]
[null,null,null,null,null,null,null,"",null,null,"","","","","","","",""]
[null,null,null,null,null,null,null,"",null,null,"","","","","","","",""]
[null,null,null,null,null,null,null,"",null,null,"","","","","","","",""]
[null,null,null,null,null,null,null,"",null,null,"","","","","","","",""]
[null,null,null,null,null,null,null,"",null,null,"","","","","","","",""]
[null,null,null,null,null,null,null,"",null,null,"","","","","","","",""]
[null,null,null,null,null,null,null,"",null,null,"","","","","","","",""]
[null,null,null,null,null,null,null,"",null,null,"","","","","","","",""]
[null,null,null,null,null,null,null,"",null,null,"","","","","","","",""]
[null,null,null,null,null,null,null,"",null,null,"","","","","","","",""]
[null,null,null,null,null,null,null,"",null,null,"","","","","","","",""]
[null,null,null,null,null,null,null,"",null,null,"","","","","","","",""]
[null,null,null,null,null,null,null,"",null,null,"","","","","","","",""]
[null,null,null,null,null,null,null,"",null,null,"","","","","","","",""]
[null,null,null,null,null,null,null,"",null,null,"","","","","","","",""]

{"sheet":"使い方（１）","index":6,"n_rows":247,"n_cols":4,"rows_kept":247,"cut":false,"hidden":false,"merged":[]}
["ご案内",null,null,"喫食入力 Ver.3.1 2025/03/09,03/08 Ver.2.3　2024/06/21 Ver.2.14　2019/11/19  Ver.2.13　2018/03/25"]
[]
[null,"喫食入力ファイルは食中毒個人調査票の喫食状況を統計解析するために使用するものです。"]
[null,"喫食入力Ver.3","ｘｌｓｍ　マクロ有効ブック　対応しメニュー数300まで対応。"]
[null,"喫食入力Ver.２","これはマクロ使用バージョンで、献立が複数あり、しかも一部が重複するときに便利です。"]
[null,null,"例えば、A定食、B定食で付け合わせが共通しているといった例や、"]
[null,null,"結婚式でのA組とB組のコース内容に共通のものが使われている例を想定しています。"]
[null,null,"メニューとその内容を入力し、調査対象者の情報を入力します。"]
[null,null,"この時、不要なメニューを見えなくしたり、不要な列を隠して入力を便利にする機能を、"]
[null,null,"エクセルのマクロを利用してソートとフィルターで実現しています。"]
[null,null,"新入力表は喫食調査票シートとはリンクしていません。"]
[null,"喫食入力Ver.２.1","集計対象範囲を60,000行に拡張。集計表は計算結果の転記を原則とする。"]
[null,null,"fisher 片側P　を追加"]
[null,"喫食入力Ver.２.13","7行目に入力がある場合のバグを修正（7行目に入力があれば強制消去）"]
[null,"喫食入力Ver.２.14","メニュ数の上限＝２５２を明記、多すぎる場合の中断処理追加。使い方、微修正。"]
[null,"喫食入力Ver.２.３","イェーツの補正実行を１０人から５人へ変更"]
[]
["使い方"]
["①","はじめに","画面上部、左の方に右のような警告が出ます。"]
[null,null,"【オプション】をクリックして、セキュリティを解除してください。（⇒図）"]
[]
[]
[]
[]
[]
[]
[]
[]
[]
[]
[]
[]
[]
[]
[]
[]
[]
[]
[]
[]
[]
[]
[]
[]
[]
[]
[]
[]
[null,"【新入力表】シートがこのファイルのメインとなるシートです。"]
[]
[null,"【新入力表】シートに"]
["②","メニューを入力","【入力例】シートを参考に、喫食調査票の順に入力します。"]
[null,1,"コース料理が複数ある場合は、D列以降にコース名と個別料理の"]
[null,null,"聞き取り順番を入力します。（２５２メニューまで対応できます）"]
[null,2,"食品はB列C列に追加してください。作業の途中でも構いません。"]
[null,null,"メニューの最後に追加しても行挿入しても構いません。"]
[null,null,"それぞれの食品に聞き取り順を入力してください。"]
[null,3,"「ご注意」食中毒調査票・喫食調査票２について。"]
[null,null,"このバージョンの調査票のシートは集計表や入力表とリンクしていません。"]
[null,null,"新入力表にデータをコピーして使ってください。"]
[]
[]
[]
["③","調査結果を入力","【入力例】シートを参考に、喫食調査結果を入力します。　調査結果入力欄の上部各行の意味は次のとおりです。"]
[null,1,"【No】行は調査票の通し番号と同じにしておくと間違いが少ないです。対象者が増えると追加してください。数字は集計に使用しません。"]
[null,null,"【氏名】行は入力ミス防止のために入れます。空白のままでも構いません。"]
[null,null,"【発症】行は症状の有無を　０：健康　１：患者　で入力します。"]
[null,null,"　　　　　集計で使用しますから必ず入力してください。"]
[null,null,"　　　　　調査未了の場合は空白のままで結構です。この欄が空白データは集計上無視されます。"]
[null,null,"　　　　　発症の有無が不明の場合は「99」を入力しておくと作業の進行管理に便利です。"]
[null,null,"【入力】行はデフォルトでは「AA,AB,AB,AC…」とその列名が入っていますが、特に意味はありません。"]
[null,null,"　　　　　コース名やグループ名を入力すると便利です。"]
[null,null,"　　　　　入力がないと勝手に列名が入ります。"]
[null,2,"上記項目は【症状入力】ファイルのデータを使用すると便利です。"]
[null,null,"【症状入力】ファイルの「行と列を入れ替えて」コピー・貼り付けすると間違いが少なくなります。"]
[null,3,"入力する調査対象のグループが変わる場合（違う献立の入力）は"]
[null,null,"【メニュー整頓】ボタンで「入力対象の献立」に変更すると、入力が容易になります。"]
[null,4,"メニュー部分が隠れている場合は【フィルター】ボタンで表示させてください。"]
[null,5,"調査対象者数は550名ほどを限度としています。変更する場合はマクロを変更してください。"]
[null,null,"ただし、200名を超えるような場合は入力結果の合算の方が楽でしょう。"]
[]
["④","調査結果を集計","【操作メニュー】ボタンをクリックして集計作業を開始します。"]
[null,null,"【データ転記】ボタンをクリックすると新入力表のデータが【集計表】に転記され、"]
[null,null,"同時に、【カイ2乗表】シートに計算結果が表示されます。"]
[null,1,"【集計表】シートを眺めて入力ミスがないか確認してください。"]
[null,2,"【集計表】シートでは対象者の並びをソートによって変更できます。"]
[null,null,"これにより、グループ別に並べ替えるなどして確認を容易にすることができます。"]
[null,3,"【集計表】シートで発症や喫食の有無を変更した場合、その結果を【カイ2乗表】に反映させるためには"]
[null,null,"B11セルにある、【カイ2乗表へ値転写】ボタンをクリックしてください。"]
[null,null,"ただし、【新入力表】シートは変更されません。変更を確定する場合は【新入力表】シートも変更してください。"]
[null,null,"メニュー数はMH列（320メニュー）までを想定しています。"]
[]
[null,"【カイ2乗表】シートで"]
["⑤","計算結果を確認","【カイ2乗表】シートに計算結果が表示されます。"]
[null,1,"表の右上に、値転写をした日時が自動的に表示されます。入力完了日時とは異なるのでご注意ください。"]
[null,2,"メニュー毎の合計数などに誤りが無いか確認してください。"]
[null,3,"小計、合計など計算結果のセルは計算式が入ってます。"]
[null,null,"計算式を誤消去した場合など、【計算式転写】で計算式を入力できます。"]
[null,4,"「食べた」、「食べない」の列の「有症」、「健康」は任意の数字を入力できます。"]
[null,null,"シミレーションに活用してください。"]
[null,5,"この表を印刷し、その時点での情報として活用してください。"]
[null,6,"喫食者数が少ない場合【fisher】ボタンで、fisherの正確確率計算結果が表示されます。"]
[null,null,"fisherの計算はユーザー定義関数で行っています。マクロを確認してください。"]
[null,null,"目障りな場合は列削除してください。"]
["⑥","実際に使用する","【初期化】ボタンをクリックするとデータが全て削除され、"]
[null,null,"入力用シートになります。これに名前を付けて保存し、使ってください。"]
[null,null,"入力データが全て削除されますので注意してください。"]
[]
["⑦","多人数の事件の場合","別ファイルで作業し、後で併合することができます。　聞き取り順や内容が多少異なっても、"]
[null,null,"メニュー総数が251までなら、メニュー並びを新入力表に合わせて追加することができます。"]
[null,1,"他ファイルの入力結果の追加は、メニュー並びが全く同じならば、【集計表】の最後の行の次に追加してください。"]
[null,2,"ファイルによってメニューが異なる場合は、【新入力表】のメニュー欄及び個人調査結果欄それぞれにデータを貼り付けてください。"]
[null,"◎","メニュー数が多くかつ並びがばらばらだと処理に時間がかかります。根気よくお待ちください。"]
[]
[null,"【集計表】シートに直接入力することもできます。"]
[null,1,"メニューは【集計表】シートに直接入力するか、【新入力表】に入力し、【データ転記】してください。"]
[null,2,"データ数が多いと計算に時間がかかり、入力がスムーズに行えなくなります。"]
[null,null,"【メニュー】から【計算式を数値にする】を選び、計算式を無効にしてください。"]
[null,null,"【計算式初期化】ボタンで計算式が有効になります。"]
[null,3,"【カイ2乗表へ値転写】ボタンで現在の入力結果に基づきカイ2乗検定の計算が実行されます。"]
[]
[]
["主なボタンと作業内容"]
[]
[]
[null,"【メニュー整頓】、【データ転記】、【フィルターOn/Off】、【集計表の名簿を転記】の操作を"]
[null,"選択することができます。"]
[]
[]
[null,"希望の献立の位置にカーソルを置いてボタンをクリックしてください。"]
[null,"メニューの番号順に整列し、関係のないメニューは入力の邪魔になるので表示しません。"]
[null,"No、種別、献立のセルにカーソルを置いて実行すると、その列の昇順にソートします。"]
[null,"なお、メニューは行、列とも挿入して問題は有りません。"]
[]
[]
[null,"【新入力表】シートのデータを【集計表】シートに転記します。"]
[null,"同時に、【カイ2乗表】シートに計算結果が表示されます。"]
[]
[]
[null,"フィルターのOn、Offを切り替えます。"]
[null,"メニューが一部しか表示されていないとき、又は全く表示されていないときクリックしてください。"]
[]
[]
[null,"作業に不要な列を非表示にします。"]
[null,"作業に必要な項目のセルにカーソルを置き「列を隠す」ボタンをクリックするとカーソル左側の列が隠されます。"]
[null,"「見せる」ボタンをクリックすると、非表示となっていた列が表示されます。"]
[null,"コースメニューを追加するときや、喫食入力時、作業している列の左側に邪魔な列が有る場合列を隠すとすっきりします。"]
[]
[null,null,"この用途のボタンはここにしかありません。"]
[null,"コース名の列に背景色をつけます。"]
[null,"行挿入などで、背景色なしが混在し、見苦しくなったときに使用します。"]
[]
[null,null,"集計表のシートにあります。"]
[null,"集計表のデータをE列からIV列まで「カイ2乗表」へ転記します。"]
[null,"(メニューと集計結果を転記します。）"]
[]
[null,null,"カイ2乗表のシートにあります。"]
[null,"カイ２乗表に計算式を埋め込みます。行挿入すると、その行は計算式が有りませんので使います。"]
[]
[]
[null,"カイの2乗表のデータを削除し、計算式を新たにコピーします。"]
[null,"枠と計算式だけになりますから、改めて「カイ2乗表への値転写」を実行してください。"]
[null,"シュミレーションなどで、データーや計算式を変更した恐れがあるときに実行します。"]
[]
[]
[null,"現在のデータをメニューを含め全て削除し、新しい作業に備えます。"]
[null,"【新入力表】【集計表】【カイ2乗表】シートの計算式を再設定します。"]
[null,"入力データは全て失われます。「名前を付けて保存」してから作業開始してください。"]
[]
[]
[null,"集計表に直接入力する場合、入力時毎の再計算による計算時間を節約するために使用します。"]
[]
[]
["ご注意"]
[]
["◎","メニューの最大数は２５２まで、【新入力表】シートの対象人数は２３０名が上限です。"]
[null,"対象者数が多い場合や分担して入力する場合は、このファイルを複製して作業ししてください。"]
[null,"このときは、メニュー並びが完全に同一か確認してください。上記使い方⑦も参照してください。"]
[]
["◎","【集計表】シートへの「データ転記」で喫食調査対象者が多く、右側へ追加できなくなったり、分担して入力する場合"]
[null,"調査票ABC列のメニュー並びが全く同一ならば、集計表に加算できます。"]
[null,"この場合、入力列より右（デフォルトではAA列から右）をすっかり削除し、そこへ追加データの該当部分を差し替えてください。"]
[null,"「データ転記」⇒いいえ　「追加しますか」⇒はい　と進んでください。"]
[]
["◎","【集計表】への「データ転記」で喫食調査対象者が多く、複数のファイルを併合する場合"]
[null,"メニューの表記が一部異なると（例えば空白有無や漢字ひらがな、省略など）別メニューと判断します。"]
[null,"追加するファイルのメニュー並びの違いや追加が有っても追加側（併合するファイルの【新入力表】）を優先で対応しています。"]
[null,"このとき、【集計表】の元のメニュー側に完全一致しないメニューが有ると列の右側に集められます。"]
[null,"注意のコメントが出た場合、【集計表】の最右列のメニューを確認してください。"]
[]
["◎","このバージョンでは【集計表】シートのＡ列1行から10行まで、及びA1セルからＤ14セルまでは削除不可です。"]
[null,"また、14行目は変更不可です。"]
[null,"集計はデフォルトでは60,000データ、251メニューまで集計可能ですが、集計範囲を範囲名「Data]で定義してあります。"]
[null,"範囲名の対象範囲は　数式メニューの名前の定義で行います。"]
[null,"計算可能な範囲で行挿入又は列挿入をすると、範囲が広がります。そのうえで、改めて「データ転記」を行ってください。"]
[null,"現在の入力範囲の下方、見えない場所にデータが残っていると二重計上する恐れがあります。【集計表】を初期化すると元に戻ります。"]
[]
["◎","【新入力表】の8行目をデフォルトのタイトル行としてマクロを設定しています。"]
[null,"従って、タイトル行は8行目にあるようにしてください。7行目の入力事項はデータ転記時に自動で消去します。ご注意ください。"]
[]
["◎","エクセルの「フィルター」機能を使用しているため、「表の範囲」を意識した作りになっています。"]
[null,"従って、A列のNo欄と列タイトル（デフォルトは8行目）が空白にならない様に入力してください。"]
[null,"削除されているとマクロによる操作の際、勝手に埋められることがあります。"]
[]
["◎","「カイ２乗表へ値転写」はセルごとに空セルを含め、全てのセルを転記しています。"]
[null,"なお、転記の際は全データを消去して上書きする選択肢もあります。"]
[null,"必要ならば別のシートにコピーしておいてください。"]
[]
["◎","「カイ２乗表へ値転写」では（メニュー数+2）行の表にしています。"]
[null,"シミュレーションなどで必要な場合は行を再表示させてください。"]
[]
["◎","こまめにバックアップをとっておいてください。"]
[null,"ファイルに日時付きの名前を付けて保存すると分かりやすく、失敗したときに助かります。"]
[]
[]
[]
["コメント","原因食品を推定するためには次のことに留意してください。"]
[]
["○","必ず「食べずに発症者」の数に留意してください。Χの2乗値が大きくても他の食品の可能性があります。"]
[null,"「食べずに発症者」については、なぜそうなるか検討してください。"]
[]
["○","χ2乗検定で、合計数を対象者全員（食べないグループを加える）とすると発症者グループに"]
[null,"引きずられて、発症者が食べた食品のχの2乗値がいたずらに大きくなります。"]
[null,"原因食品を推定する場合は、その値が相対的に大きいものに注目してください。"]
[]
["○","カイ2乗の計算は各項目で５人より大きい時はそのまま、５人以下の場合は補正するようになっています。"]
[null,"切り替える人数を変更するにはマクロの赤数字を変更してください。"]
[null,"    Cells(11, 16).Value = \"=IF(F11+G11+I11+J11=0,\"\"\"\",IF((F11*J11-G11*I11)<=0,\"\"     - \"\",IF(AND(F11>5,G11>5,I11>5,J11>5),((F11*J11-G11*I11)^2*(F11+G11+I11+J11)/((F11+I11)*(G11+J11)*(F11+G11)*(I11+J11))),((F11*J11-G11*I11)-(F11+G11+I11+J11)/2)^2*(F11+G11+I11+J11)/((F11+I11)*(G11+J11)*(F11+G11)*(I11+J11)))))\""]
[]
[]
["お願い"]
["○","マクロの中身は「表示」メニューの「マクロ」の「マクロの表示」⇒編集で改変できます。"]
[null,"不具合が有った場合はこちらで修正してください。"]
[null,"なお、不具合については作成者（Maruta）宛ご連絡くださると助かります。"]
[]
["○","集計表での計算は初期値 60,000 行　までです。　編集する場合は　マクロの「Sub 集計表Calc」　の該当する部分を書き換えてください。"]
[null,"なお、知らないうちに行削除してあると、合計値が合わない恐れがあります。"]
[null,"この際は、［計算式初期化］ボタンをクリックしてください。"]
[]
["○","2025年３月 Excel97-2003(*.xls) から Exce マクロ有効ブック(*.xlsｍ)　移行した関係で若干のバグが残っている可能性があります。"]
[null,"不具合があった場合は丸田までお知らせいただくと幸いです。"]
[]
["参考","カイ２乗検定について"]
[null,"早稲田大学人間科学部向後研究室が開発し、実際に大学の授業で使用しているWeb教材が一般公開されています。"]
[null,"↓　ここへ移転しています。"]
[null,"ハンバーガーショップで学ぶ 楽しい統計学 ──平均から分散分析まで──"]
[null,"https://mcn-www.jwu.ac.jp/~kuto/kogo_lab/psi-home/stat2000/index.html"]

{"sheet":"入力例","index":7,"n_rows":34,"n_cols":21,"rows_kept":34,"cut":false,"hidden":false,"merged":[]}
[]
[null,"入力例",null,null,null,null,null,null,null,null,null,null,null,null,null,null,null,null,null,null,"コメント"]
[]
[null,"7行目は空白行です。入力・削除しないでください。",null,null,null,null,null,null,null,"No",1,2,3,4,5,6,7,8,9,"＜＝＝","個人調査票に連番を打っておき、その番号に合わせて入力すると間違いが少ないです。"]
[null,null,null,null,null,null,null,null,null,"氏名","A1","A2","A3","A4","A5","A6","A7","A8","A9","＜＝＝","名前は入力ミスを防ぐため、書いておくと便利です。空白でも構いません。"]
[null,{"$f":"CONCATENATE(\"表示行数 = \",SUBTOTAL(103,A9:A2015))","v":"表示行数 = 25"},null,1,6,7,8,9,10,"発症",1,0,1,1,0,1,1,0,1,"＜＝＝","発症＝1　健康＝0　不明＝99　を入力してください。　未調査は空白のままにしてください。"]
[]
["No","種別","献立","悠月","日替わり","うたげ","ABC社","○○家","未入力","入力","AA","AB","AC","AD","AE","悠月","悠月","悠月","AI","＜＝＝","この行は途中に未入力のセルがあると集計の都合上、勝手に「未入力」やセルの列名で埋められます。"]
[1,"先付","季節豆腐（蟹胡麻豆腐）",1,null,null,null,null,null,null,1,1,1,1,1,1,1,1,1,"＜＝＝","食べた＝1　食べない＝0　未調査及び不明は空白。分からないときは食べたことにしておく方が間違いが少ないです。"]
[2,"前菜","サーモンけんちん蒸し",2,null,1,null,null,null,null,1,1,1,1,0,1,1,1,1]
[3,"前菜","干し柿ゆべし",3,null,2,null,null,null,null,1,1,1,1,0,1,1,1,0]
[4,"前菜","黒豆のカステラ",4,null,3,null,null,null,null,1,1,1,0,0,1,1,1,0,null,"メニュー欄の種別と献立は"]
[5,"前菜","アユの甘露煮",5,null,4,null,null,null,null,1,1,1,1,0,1,1,1,0,null,"刺身やてんぷらなど、複数の素材が有る場合使います。"]
[6,"前菜","イカ麹あえ",6,null,5,null,null,null,null,1,1,1,0,0,1,1,1,0,null,"片方が空白でも構いませんが、並べ替えた時、分かりにくくなるようなら両方入れてください。"]
[7,"造り","いか",7,1,null,null,null,null,null,1,1,1,1,1,1,1,1,1,null,"例えば煮物の南京か、天ぷらの南京か分からなくなったりしますので細かく南京煮物と書くのも有りです。"]
[8,"造り","タイ",8,3,6,null,null,null,null,1,1,1,1,0,1,1,1,1,null,"メニュー数が多くなると、刺身と焚き合わせなど調理種別にみる方が分かりやすいと思います。"]
[9,"造り","カンパチ",9,2,7,null,null,null,null,1,1,1,1,0,1,1,1,1,null,"種別名だけのメニューにして入力するのも可能です。"]
[10,"造り","うに",10,4,null,null,null,null,null,1,1,1,1,0,1,1,1,1,null,"コース名や調査対象者の変更のため、列の削除や挿入をしてもそのまま転記するので問題ありません。"]
[11,"造り","ぼたんエビ",11,null,null,null,null,null,null,1,1,1,1,0,1,1,1,1]
[12,"造り","野菜",12,null,null,null,null,null,null,1,1,1,null,0,1,1,0,1]
[51,"煮物","旬彩炊き合わせ",13,null,null,null,null,null,null,1,1,1,null,null,1,0,0,0]
[52,"焼物","鮎熊笹",14,null,null,null,null,null,null,1,0,1,1,null,1,0,0,0]
[53,"凌ぎ","さんま握り鮨",15,null,null,null,null,null,null,0,1,1,1,null,1,1,0,0]
[54,"温物","季節饅頭",16,null,null,null,null,null,null,1,1,1,0,null,1,0,0,0]
[55,"小鍋","黒毛和牛しゃぶしゃぶ",17,5,null,null,null,null,null,1,1,1,1,null,1,1,1,1]
[70,"揚物","クワイのレンコン包み",18,null,null,null,null,null,null,1,1,0,1,0,0,0,0,0]
[71,"揚物","ししとう",19,null,null,null,null,null,null,1,1,0,1,0,0,0,0,0]
[72,"揚物","きす",null,null,null,null,null,null,null,0,1,0,1,0,0,0,0,0]
[73,"揚物","レンコン",null,null,null,null,null,null,null,1,1,0,1,0,0,1,0,0]
[81,"酢の物","季節の酢の物",20,6,null,null,null,null,null,1,1,0,1,0,1,0,0,0]
[91,"飯もの","釜飯",21,null,null,null,null,null,null,1,1,0,0,1,1,0,0,0]
[92,"汁物","吸物",22,null,null,null,null,null,null,1,0,1,0,0,1,0,0,1]
[100,"揚物","いづれか",null,null,null,null,null,null,null,{"$f":"IF(K26+K27+K28+K29>0,1,0)","v":1},{"$f":"IF(L26+L27+L28+L29>0,1,0)","v":1},{"$f":"IF(M26+M27+M28+M29>0,1,0)","v":0},{"$f":"IF(N26+N27+N28+N29>0,1,0)","v":1},"=IF(O26+O27+O28+O29>0,1,0)",null,null,null,null,null,"この列は揚げ物のいづれかを食べた場合、「1」と表示するように計算式を入れてみました。"]
[null,null,null,null,null,null,null,null,null,null,null,null,null,null,null,null,null,null,null,null,"どれかを食べていると「1」より大きくなりますから、そのとき「1」とそうでないときは「0」と表示します。"]

{"sheet":"食中毒調査票","index":8,"n_rows":52,"n_cols":16,"rows_kept":52,"cut":false,"hidden":false,"merged":[[49,0,49,2],[49,3,49,6],[50,1,50,6],[51,1,52,6],[51,7,52,15],[45,0,46,2],[45,3,46,6],[47,0,47,2],[47,3,47,6],[48,0,48,2],[48,3,48,6],[42,0,42,2],[42,3,42,6],[43,0,43,2],[43,3,43,6],[44,0,44,2],[44,3,44,6],[39,1,39,2],[39,4,39,6],[40,1,40,2],[40,4,40,6],[41,1,41,2],[41,4,41,6],[16,0,41,0],[16,1,16,2],[16,4,16,6],[17,1,17,2],[17,3,19,3],[17,4,17,6],[18,1,18,2],[18,4,18,6],[19,1,19,2],[19,4,19,6],[36,1,36,2],[36,4,36,6],[37,1,37,2],[37,4,37,6],[38,1,38,2],[38,4,38,6],[33,1,33,2],[33,4,33,6],[34,1,34,2],[34,4,34,6],[35,1,35,2],[35,4,35,6],[30,1,30,2],[30,4,30,6],[31,1,31,2],[31,4,31,6],[32,1,32,2],[32,4,32,6],[26,1,26,2],[26,3,27,3],[26,4,26,6],[27,1,27,2],[27,4,27,6],[28,1,28,2],[28,3,29,3],[28,4,28,6],[29,1,29,2],[29,4,29,6],[23,1,23,2],[23,4,23,6],[24,1,24,2],[24,3,25,3],[24,4,24,6],[25,1,25,2],[25,4,25,6],[20,1,20,2],[20,3,22,3],[20,4,20,6],[21,1,21,2],[21,4,21,6],[22,1,22,2],[22,4,22,6],[14,0,14,6],[15,0,15,2],[15,3,15,6],[9,2,9,4],[9,10,9,13],[9,14,9,15],[12,0,12,1],[12,2,12,3],[12,4,12,5],[12,8,12,11],[12,12,12,15],[6,10,6,12],[6,13,6,15],[8,0,8,1],[8,2,8,4],[8,5,9,9],[8,10,8,13],[8,14,8,15],[9,0,9,1],[13,0,13,1],[13,2,13,3],[13,4,13,6],[13,8,13,14],[0,0,0,1],[0,2,0,5],[0,7,0,13],[0,14,0,15],[1,0,2,1],[1,2,1,5],[1,7,1,15],[2,2,2,5],[2,6,3,6],[2,7,3,15],[3,0,3,1],[3,2,3,5]]}
["氏　名　　　性　別",null,"　　　　　　　　　　　　　　　　　　　　　　　　　　　　　　　　　　男　・　女",null,null,null,"個人整理No．",null,null,null,null,null,null,null,"健康者　・　発症者"]
["住　所",null,null,null,null,null,"生年月日　　年齢","年　　月　　日　（　　）歳"]
[null,null,null,null,null,null,"所属（学校名、職場）"]
["連 絡 先"]
[]
[]
[null,"様式Ⅲ－１",null,null,null,null,null,null,null,null,"調査方法",null,null,"対面 ・ TEL ・ 手渡し"]
[]
["保　健　所　名",null,null,null,null,"食中毒調査票（№　   ）",null,null,null,null,"調査年月日",null,null,null,"　　　　年　　月　　日"]
["保健所事件番号",null,null,null,null,null,null,null,null,null,"調査担当者氏名"]
[]
[]
["ID※",null,null,null,"性別",null,"男　・　女",null,"摂　食　日　時",null,null,null,"月　　日　　時　　分"]
["年齢",null,"　　　　　　　歳",null,"　　　",null,null,null,"食　品　名",null,null,null,null,null,null,"食べたか"]
["※　ＩＤの項目欄は府内保健所で使用のため、記載不要"]
["いつごろ発症しましたか",null,null,"　　　月　　　日　　　時　　　分"]
["症　　状　　及　　び　　発　　症　　順　　位",null,null,"発症順位"]
[null,"腹痛はありましたか",null,null,"　（　有　・　無　）　"]
[null,"　　その部位は",null,null,"上部 ・ へそ部 ・ 下部 ・ 全体"]
[null,"　　腹痛が始まった日時は",null,null,"　月　　　日　　　時　　　分"]
[null,"下痢はありましたか　その回数は",null,null,"　（　有　・　無　）　（　1日　　　回　)"]
[null,"　　その下痢便の形状は",null,null,"水様便 ・ 粘液便 ・ 粘血便 ・ 血便"]
[null,"　　下痢が始まった日時は",null,null,"　月　　　日　　　時　　　分"]
[null,"しぶり腹（便意があるが排便せず）",null,null,"　（　有　・　無　)"]
[null,"吐気はありましたか",null,null,"　（　有　・　無　）"]
[null,"　　吐気が始まった日時は",null,null,"　月　　　日　　　時　　　分"]
[null,"吐きましたか　その回数は",null,null,"　（　有　・　無　）　(　１日　　　回　)"]
[null,"　　吐いた日時は",null,null,"　月　　　日　　　時　　　分"]
[null,"発熱はありましたか　最高体温は",null,null,"　（　有　・　無　)　(　最高　　　℃　)"]
[null,"　　発熱した日時は",null,null,"　月　　　日　　　時　　　分"]
[null,"頭痛はありましたか",null,null,"　（　有　・　無　）"]
[null,"悪寒（ぞくぞくした寒気）はありましたか",null,null,"　（　有　・　無　）"]
[null,"戦りつ(ふるえ）はありましたか",null,null,"　（　有　・　無　）"]
[null,"倦怠感（だるさ）はありましたか",null,null,"　（　有　・　無　）"]
[null,"脱力感はありましたか",null,null,"　（　有　・　無　）"]
[null,"麻痺（しびれ）はありましたか",null,null,"　（　有　・　無　）"]
[null,"けいれんはありましたか",null,null,"　（　有　・　無　）"]
[null,"げっぷはでましたか",null,null,"　（　有　・　無　）"]
[null,"目の異常（物が二重に見える等）",null,null,"　（　有　・　無　）"]
[null,"体に赤い部分は出ましたか",null,null,"　（　有　・　無　）"]
[null,"寝込みましたか",null,null,"　（　有　・　無　）"]
[null,"その他（　　　　　　　　　　　　　　　）",null,null,"　（　有　・　無　）"]
["いつ医療機関を受診しましたか",null,null,"　　　月　　　日　　　時　　　分"]
["受診した医療機関名は"]
["医療機関の所在地・連絡先は"]
["医療機関で検便をしましたか",null,null,"　　有　（　　　月　　　日）　・　無\n　検査項目：\n（有の場合）"]
[]
["投薬されましたか",null,null,"　（　有　・　無　）　　　　　投薬日　　月　　日"]
["　薬の名前は"]
["入院しましたか",null,null,"　（　有　・　無　）　　　　　入院日　　月　　日から  日間"]
[null,"★症状のあったものには発症順位（症状が出た順番）を記入してください。"]
[null,"注）　太枠内はすべて記入してください。",null,null,null,null,null,"★「食べたか」の項目に、食べた場合は○、\n食べていない場合は×、不明の場合は？を記入してください。"]

{"sheet":"喫食調査票２","index":9,"n_rows":42,"n_cols":13,"rows_kept":42,"cut":false,"hidden":false,"merged":[[43,10,43,11],[43,12,43,13],[35,12,35,13],[36,12,36,13],[37,12,37,13],[38,12,38,13],[39,12,39,13],[40,12,40,13],[34,12,34,13],[23,12,23,13],[24,12,24,13],[25,12,25,13],[26,12,26,13],[27,12,27,13],[28,12,28,13],[29,12,29,13],[30,12,30,13],[31,12,31,13],[32,12,32,13],[33,12,33,13],[22,12,22,13],[11,12,11,13],[12,12,12,13],[13,12,13,13],[14,12,14,13],[15,12,15,13],[16,12,16,13],[17,12,17,13],[18,12,18,13],[19,12,19,13],[20,12,20,13],[21,12,21,13],[7,1,7,2],[7,7,7,11],[7,12,7,13],[8,12,8,13],[9,12,9,13],[10,12,10,13],[1,10,1,12],[2,10,2,12],[3,8,3,9],[3,11,3,13],[4,8,4,9],[4,11,4,13]]}
[]
[null," 喫 食 調 査 票 ",null," 個人整理No",null,null,null,null,"調査方法",null,"対面・TEL・手渡し"]
[]
[null,"対象者",null,null,"健康者・有症者",null,null,null,"調査年月日",null,null,"年　　　月　　　日　"]
[null," 氏　　名",null,null,"男・女　",null,null,null,"調査者氏名"]
[]
[null,"喫 食 日 時",null,"月　　　日　　　時　　　分",null,null,null,"喫 食 日 時",null,"　　月　　　　日　　　　　時　　　分","月　　　日　　　時　　　分"]
[null,"食　　　品　　　名",null,null,"食べた",null,null,"食　　　品　　　名",null,null,null,null,"食べた"]
[null,null,{"$f":"IF(CELL(\"contents\",食中毒調査票!N9)=\"\",\"\",CELL(\"contents\",食中毒調査票!N9))","v":""}]
[null,null,{"$f":"IF(CELL(\"contents\",食中毒調査票!N10)=\"\",\"\",CELL(\"contents\",食中毒調査票!N10))","v":""}]
[null,null,{"$f":"IF(CELL(\"contents\",食中毒調査票!N11)=\"\",\"\",CELL(\"contents\",食中毒調査票!N11))","v":""}]
[null,null,{"$f":"IF(CELL(\"contents\",食中毒調査票!N12)=\"\",\"\",CELL(\"contents\",食中毒調査票!N12))","v":""}]
[null,null,{"$f":"IF(CELL(\"contents\",食中毒調査票!N13)=\"\",\"\",CELL(\"contents\",食中毒調査票!N13))","v":""}]
[null,null,{"$f":"IF(CELL(\"contents\",食中毒調査票!N14)=\"\",\"\",CELL(\"contents\",食中毒調査票!N14))","v":""}]
[null,null,{"$f":"IF(CELL(\"contents\",食中毒調査票!N15)=\"\",\"\",CELL(\"contents\",食中毒調査票!N15))","v":""}]
[null,null,{"$f":"IF(CELL(\"contents\",食中毒調査票!N16)=\"\",\"\",CELL(\"contents\",食中毒調査票!N16))","v":""}]
[null,null,{"$f":"IF(CELL(\"contents\",食中毒調査票!N17)=\"\",\"\",CELL(\"contents\",食中毒調査票!N17))","v":""}]
[null,null,{"$f":"IF(CELL(\"contents\",食中毒調査票!N18)=\"\",\"\",CELL(\"contents\",食中毒調査票!N18))","v":""}]
[null,null,{"$f":"IF(CELL(\"contents\",食中毒調査票!N19)=\"\",\"\",CELL(\"contents\",食中毒調査票!N19))","v":""}]
[null,null,{"$f":"IF(CELL(\"contents\",食中毒調査票!N20)=\"\",\"\",CELL(\"contents\",食中毒調査票!N20))","v":""}]
[null,null,{"$f":"IF(CELL(\"contents\",食中毒調査票!N21)=\"\",\"\",CELL(\"contents\",食中毒調査票!N21))","v":""}]
[null,null,{"$f":"IF(CELL(\"contents\",食中毒調査票!N22)=\"\",\"\",CELL(\"contents\",食中毒調査票!N22))","v":""}]
[null,null,{"$f":"IF(CELL(\"contents\",食中毒調査票!N23)=\"\",\"\",CELL(\"contents\",食中毒調査票!N23))","v":""}]
[null,null,{"$f":"IF(CELL(\"contents\",食中毒調査票!N24)=\"\",\"\",CELL(\"contents\",食中毒調査票!N24))","v":""}]
[null,null,{"$f":"IF(CELL(\"contents\",食中毒調査票!N25)=\"\",\"\",CELL(\"contents\",食中毒調査票!N25))","v":""}]
[null,null,{"$f":"IF(CELL(\"contents\",食中毒調査票!N26)=\"\",\"\",CELL(\"contents\",食中毒調査票!N26))","v":""}]
[null,null,{"$f":"IF(CELL(\"contents\",食中毒調査票!N27)=\"\",\"\",CELL(\"contents\",食中毒調査票!N27))","v":""}]
[null,null,{"$f":"IF(CELL(\"contents\",食中毒調査票!N28)=\"\",\"\",CELL(\"contents\",食中毒調査票!N28))","v":""}]
[null,null,{"$f":"IF(CELL(\"contents\",食中毒調査票!N29)=\"\",\"\",CELL(\"contents\",食中毒調査票!N29))","v":""}]
[null,null,{"$f":"IF(CELL(\"contents\",食中毒調査票!N30)=\"\",\"\",CELL(\"contents\",食中毒調査票!N30))","v":""}]
[null,null,{"$f":"IF(CELL(\"contents\",食中毒調査票!N31)=\"\",\"\",CELL(\"contents\",食中毒調査票!N31))","v":""}]
[null,null,{"$f":"IF(CELL(\"contents\",食中毒調査票!N32)=\"\",\"\",CELL(\"contents\",食中毒調査票!N32))","v":""}]
[null,null,{"$f":"IF(CELL(\"contents\",食中毒調査票!N33)=\"\",\"\",CELL(\"contents\",食中毒調査票!N33))","v":""}]
[null,null,{"$f":"IF(CELL(\"contents\",食中毒調査票!N34)=\"\",\"\",CELL(\"contents\",食中毒調査票!N34))","v":""}]
[null,null,{"$f":"IF(CELL(\"contents\",食中毒調査票!N35)=\"\",\"\",CELL(\"contents\",食中毒調査票!N35))","v":""}]
[null,null,{"$f":"IF(CELL(\"contents\",食中毒調査票!N36)=\"\",\"\",CELL(\"contents\",食中毒調査票!N36))","v":""}]
[null,null,{"$f":"IF(CELL(\"contents\",食中毒調査票!N37)=\"\",\"\",CELL(\"contents\",食中毒調査票!N37))","v":""}]
[null,null,{"$f":"IF(CELL(\"contents\",食中毒調査票!N38)=\"\",\"\",CELL(\"contents\",食中毒調査票!N38))","v":""}]
[null,null,{"$f":"IF(CELL(\"contents\",食中毒調査票!N39)=\"\",\"\",CELL(\"contents\",食中毒調査票!N39))","v":""}]
[null,null,{"$f":"IF(CELL(\"contents\",食中毒調査票!N40)=\"\",\"\",CELL(\"contents\",食中毒調査票!N40))","v":""}]
[null,null,{"$f":"IF(CELL(\"contents\",食中毒調査票!N41)=\"\",\"\",CELL(\"contents\",食中毒調査票!N41))","v":""}]
[null,"★「食べた」の項目に、食べた場合は○、",null,null,null,null,null,"★空欄は不明とします。"]

{"sheet":"Sheet1","index":10,"n_rows":27,"n_cols":9,"rows_kept":27,"cut":false,"hidden":false,"merged":[]}
[]
[]
[]
[]
[]
[]
[]
[]
[]
[null,null,null,null,"No.","種別","食品","ちらし寿司セット","食品ID"]
[null,null,null,null,1,"31ちらし寿司","まぐろ",1,"040"]
[null,null,null,null,2,"31ちらし寿司","イカ",2,"035"]
[null,null,null,null,3,"31ちらし寿司","タコ",3,"039"]
[null,null,null,null,4,"31ちらし寿司","サーモン",4,"038"]
[null,null,null,null,5,"31ちらし寿司","カンパチ",5,"037"]
[null,null,null,null,6,"31ちらし寿司","えび",6,"036"]
[null,null,null,null,7,"31鉄火セット","うなぎ",6.1,"041"]
[null,null,null,null,8,"ちらし寿司","玉子",6.2,"045"]
[null,null,null,null,9,"ちらし寿司","いくら",6.3,"044"]
[null,null,null,null,10,"31握り","タイ",6.4,"043"]
[null,null,null,null,11,"デザート","メロン",7,"031"]
[null,null,null,null,12,"31セット","茶碗蒸し",8,"033"]
[null,null,null,null,13,"デザート","イチゴ",9,"030"]
[null,null,null,null,14,"31セット","コーヒー",10,"032"]
[null,null,null,null,15,"31セット","フルーツ",11,"034"]
[null,null,null,null,16,null,"にぎりセット　りんご",12,"052"]
[null,null,null,null,17,"デザート","オレンジ",13,"029"]